Cogmind - Beta 16 @@@ ROGUE MODE // 2025.11.09 @ 01:23:12 // Winter2019/RPGLIKE Player: FAQ Result: Destroyed by Lightning with EMDS Performance ------------- Evolutions (8) 4000 Regions Visited (30) 6000 Robots Destroyed (601) 3005 Value Destroyed (28913) 28913 Prototype IDs (84) 1680 Alien Tech Used (4) 800 Bonus (15106) 15106 TOTAL SCORE: 59504 Bonus ------- High Alert Combat Kills 4341 Follower Combat Kills 1365 Entered Garrisons 1000 Used RIF Installer 2000 Entered DSFs 1000 Network Hubs Disabled 600 Met Data Miner 300 Built Enhanced Grunts 300 Met R17 at Cetus 500 Met R17 at Research 2000 Met Sigix 2000 Friendly Fire -300 Cogmind --------- Core Integrity 0/1700 Matter 117/350 Energy 485/485 System Corruption 23% Temperature Cool (0) Movement Flying (90) Ox1 Location -2/Quarantine Parts ------- > --- POWER (3) -------- Improved Fusion Compressor Micro Antimatter Reactor Compact Particle Reactor > --- PROPULSION (6) --- Diametric Drive Diametric Drive Diametric Drive Improved Diametric Drive Improved Diametric Drive Improved Diametric Drive > --- UTILITY (8) ------ Advanced Signal Interpreter Improved Target Analyzer Experimental Transmission Jammer Advanced Reaction Control System Centrium Light Armor Plating Advanced System Shield Relay Coupler [NC] (74) > --- WEAPON (3) ------- Gamma Rifle Hypervelocity Railgun Micro-nuke Launcher > --- INVENTORY (4) ---- Heavy Disruptor Cannon Advanced Remote Datajack Peak State ------------ > --- POWER ------------ Improved Fusion Compressor Micro Antimatter Reactor Compact Particle Reactor > --- PROPULSION ------- Diametric Drive Diametric Drive Diametric Drive Improved Diametric Drive Improved Diametric Drive Improved Diametric Drive > --- UTILITY ---------- Advanced Signal Interpreter Improved Target Analyzer Advanced Transmission Jammer Experimental Transmission Jammer Advanced Reaction Control System Centrium Light Armor Plating Advanced System Shield Relay Coupler [NC] > --- WEAPON ----------- Gamma Rifle Gamma Rifle Hypervelocity Railgun > --- INVENTORY -------- Experimental Energy Well Heavy Disruptor Cannon Advanced Remote Datajack [Rating: 152] Favorites ----------- Power Light Fission Core Engine Light Angular Momentum Engine Power Core Light Fission Core Reactor Micro Antimatter Reactor Propulsion Improved Flight Unit Wheel Compact Wheel Flight Unit Improved Flight Unit Utility System Shield Device Improved Transmission Jammer Storage Experimental Energy Well Processor Advanced Signal Interpreter Hackware System Shield Protection Layered Medium Armor Plating Weapon Gamma Rifle Energy Gun Gamma Rifle Energy Cannon Heavy Disruptor Cannon Ballistic Gun Hypervelocity Railgun Ballistic Cannon Improved Light Cannon Launcher Micro-nuke Launcher Special Weapon Improved Remote Datajack Slashing Weapon Makeshift Axe Build | -11 -10 -9 -9 -8 -7 -7 -7 -7 -6 -6 -6 -6 -6 -5 -5 -5 -5 -5 -5 -5 -5 -4 -4 -4 -4 -3 -3 -3 -2 -2 ------- Run | Yrd Mat Mat Sto Mat Fac Low Low Dat Pro Fac Gar Fac DSF Fac Gar Fac Ext Cet Arc Hub Gar Fac Gar Fac DSF Res Tes Gar Res Qua Slots Evolved 16 | 3 1 2 1 1 2 1 . . . 1 1 . 1 . . . . . . . . 1 . . . 1 . . . . Power 2 | . . . . . . 1 . . . . . . . . . . . . . . . . . . . 1 . . . . Propulsion 5 | 1 . 1 1 . 1 . . . . . . . . . . . . . . . . 1 . . . . . . . . Utility 7 | 1 1 1 . 1 1 . . . . 1 . . 1 . . . . . . . . . . . . . . . . . Weapon 2 | 1 . . . . . . . . . . 1 . . . . . . . . . . . . . . . . . . . Parts Attached 151 | 6 8 12 3 7 6 5 2 . . 11 . . 1 8 6 11 1 2 1 3 10 3 2 1 3 22 2 1 10 4 Power 36 | 1 1 1 . . 1 . 2 . . 3 . . . 1 . . . . . 2 2 1 . . 2 14 1 . 3 1 Engine 5 | 1 1 . . . . . . . . . . . . . . . . . . 2 1 . . . . . . . . . Core 13 | . . 1 . . 1 . 2 . . 3 . . . 1 . . . . . . 1 1 . . 2 1 . . . . Reactor 18 | . . . . . . . . . . . . . . . . . . . . . . . . . . 13 1 . 3 1 Propulsion 33 | 2 . 3 1 2 . 3 . . . 3 . . . 2 1 5 . . . 1 . 1 . . . 6 . . 3 . Treads . | . . . . . . . . . . . . . . . . . . . . . . . . . . . . . . . Leg . | . . . . . . . . . . . . . . . . . . . . . . . . . . . . . . . Wheel 2 | 2 . . . . . . . . . . . . . . . . . . . . . . . . . . . . . . Hover . | . . . . . . . . . . . . . . . . . . . . . . . . . . . . . . . Flight 31 | . . 3 1 2 . 3 . . . 3 . . . 2 1 5 . . . 1 . 1 . . . 6 . . 3 . Utility 55 | 1 2 6 2 4 2 . . . . 5 . . 1 3 4 5 1 2 1 . 4 1 2 1 1 1 1 1 2 2 Device 15 | 1 1 1 . . . . . . . 2 . . . 2 . 1 . . . . 2 . 1 1 . 1 . . 1 1 Storage 1 | . . . . . . . . . . . . . . . . . . . . . . . . . . . . . . 1 Processor 5 | . 1 . . 1 1 . . . . 1 . . . . . . . . . . 1 . . . . . . . . . Hackware 14 | . . 1 . 1 . . . . . . . . 1 . 3 2 . . 1 . 1 1 1 . . . . 1 1 . Protection 20 | . . 4 2 2 1 . . . . 2 . . . 1 1 2 1 2 . . . . . . 1 . 1 . . . Artifact . | . . . . . . . . . . . . . . . . . . . . . . . . . . . . . . . Weapon 27 | 2 5 2 . 1 3 2 . . . . . . . 2 1 1 . . . . 4 . . . . 1 . . 2 1 Energy Gun 11 | 1 . 1 . . 2 1 . . . . . . . 2 . 1 . . . . 3 . . . . . . . . . Energy Cannon 3 | . 1 . . . . . . . . . . . . . . . . . . . . . . . . . . . 1 1 Ballistic Gun 3 | 1 1 . . . . . . . . . . . . . . . . . . . 1 . . . . . . . . . Ballistic Cannon 5 | . 2 1 . 1 1 . . . . . . . . . . . . . . . . . . . . . . . . . Launcher 2 | . 1 . . . . . . . . . . . . . . . . . . . . . . . . . . . 1 . Special Weapon 2 | . . . . . . . . . . . . . . . 1 . . . . . . . . . . 1 . . . . Impact Weapon . | . . . . . . . . . . . . . . . . . . . . . . . . . . . . . . . Slashing Weapon 1 | . . . . . . 1 . . . . . . . . . . . . . . . . . . . . . . . . Piercing Weapon . | . . . . . . . . . . . . . . . . . . . . . . . . . . . . . . . Special Melee Weapon . | . . . . . . . . . . . . . . . . . . . . . . . . . . . . . . . Unidentified Prototypes 13 | . . . . . . . . . . 1 . . . . . 1 . 1 . . . . . . . 1 . . 3 6 Parts Lost 11 | . . 1 . . . . . . . 2 . . . . 1 1 . . . 1 3 . . . . . . . 1 1 Power 2 | . . . . . . . . . . 1 . . . . . . . . . . 1 . . . . . . . . . Propulsion 1 | . . . . . . . . . . . . . . . . . . . . . . . . . . . . . 1 . Utility 6 | . . 1 . . . . . . . 1 . . . . 1 1 . . . . 2 . . . . . . . . . Weapon 2 | . . . . . . . . . . . . . . . . . . . . 1 . . . . . . . . . 1 Highest Loss Streak 3 | . . 1 . . . . . . . 2 . . . . 1 1 . . . 1 3 . . . . . . . 1 1 To Critical Strikes . | . . . . . . . . . . . . . . . . . . . . . . . . . . . . . . . Average Backups 3 | . 1 1 2 1 1 2 3 3 3 2 2 3 2 3 4 3 4 4 4 4 4 3 3 3 3 3 3 4 3 2 Power . | . . . . . . . . . . . . . . . . . . . . . . . . . . . . . . . Propulsion . | . . . . . . . . . . . . . . . . . . . . . . . . . . . . . . . Utility 1 | . . . . . . . . . . . 1 3 2 3 3 2 3 3 3 3 2 1 1 1 1 2 1 2 . . Weapon . | . . 1 2 1 1 2 3 3 2 2 1 . . . . . . . . . . 1 1 1 1 1 . 1 1 1 Tool/Special . | . . . . . . . . . . . . . . . . . . . . . . . . . . . . . . . Unused Backups 17 | . . 4 . 1 . . . . . 1 1 . 2 1 . . . . . . 1 . 1 . . . 3 . 2 . Power . | . . . . . . . . . . . . . . . . . . . . . . . . . . . . . . . Propulsion 2 | . . 1 . . . . . . . . . . . 1 . . . . . . . . . . . . . . . . Utility 11 | . . 1 . . . . . . . 1 1 . 2 . . . . . . . . . 1 . . . 3 . 2 . Weapon 4 | . . 2 . 1 . . . . . . . . . . . . . . . . 1 . . . . . . . . . Tool/Special . | . . . . . . . . . . . . . . . . . . . . . . . . . . . . . . . Average Slot Usage (%) 96 | . 96 92 94 98 93 92 99 100 100 98 95 94 92 97 98 99 99 100 100 97 95 94 100 100 100 99 98 100 93 95 Engine 1 | . 13 . . . . . . . . . . . . . . . . . . 1 5 4 . . . . . . . . Core 8 | . . 9 9 7 6 6 12 13 13 11 11 11 11 11 11 10 11 11 11 9 4 6 10 10 10 3 4 5 3 5 Reactor 1 | . . . . . . . . . . . . . . . . . . . . . . . . . . 8 10 10 10 10 Wheel 1 | . 27 8 . . . . . . . . . . . . . . . . . . . . . . . . . . . . Flight 26 | . . 16 29 33 28 31 33 33 33 31 29 29 28 27 27 27 26 27 27 27 27 28 31 31 31 30 30 30 29 30 Device 10 | . 17 10 . . . . . . . 10 11 11 11 15 13 10 11 11 11 11 14 12 15 15 15 15 15 15 14 11 Processor 9 | . 9 10 9 8 14 13 13 13 13 12 11 11 11 11 5 5 5 5 5 5 7 10 10 10 10 10 10 10 10 10 Hackware 12 | . . 4 9 15 14 13 13 13 13 12 11 11 11 11 17 22 22 22 22 22 13 10 10 10 10 10 10 10 10 10 Protection 7 | . . 11 17 15 13 13 13 13 13 6 5 5 5 5 5 4 5 5 5 5 5 5 5 5 5 5 4 5 5 5 Energy Gun 10 | . 2 1 8 7 9 11 13 13 13 11 10 11 11 14 15 15 15 16 15 13 13 10 9 10 10 11 10 10 5 9 Ballistic Gun 2 | . 23 . . . . . . . . . . . . . . . . . . . . 4 4 5 5 3 3 4 2 4 Ballistic Cannon 2 | . . 19 9 8 4 1 . . . . . . . . . . . . . . . . . . . . . . . . Peak Build Rating 152 | 6 9 23 22 35 42 45 48 48 48 69 66 65 65 80 84 99 99 104 108 108 119 120 120 120 121 143 144 143 149 152 Average Rating 76 | 4 6 16 20 28 38 43 47 48 47 61 65 65 64 75 78 85 97 103 106 105 111 114 119 119 120 131 140 143 140 144 On Entrance 78 | . 6 9 21 22 35 40 45 48 48 48 66 65 65 65 80 84 99 98 104 108 103 117 120 119 120 115 143 143 143 148 Avg Prop Armor Cover (%) 1 | . . . . . . . . . . . . . . . . . 1 . . . . 1 1 1 1 1 . . . . Naked Turns . | . . . . . . . . . . . . . . . . . . . . . . . . . . . . . . . Heaviest Build 58 | 7 14 19 21 30 30 32 32 32 32 37 39 34 34 40 40 39 39 38 38 38 49 45 41 41 41 55 56 56 58 54 Greatest Support 57 | 37 37 37 25 30 30 34 34 34 34 37 37 37 37 41 44 45 42 42 42 42 50 52 43 44 44 57 57 57 57 57 Greatest Overweight (x) 1 | . . 1 1 1 . . . . . 1 1 . . . 1 . 1 . . . 1 . . . . . . . 1 . Average Overweight (x) . | . . . . . . . . . . . . . . . . . . . . . . . . . . . . . . . Largest Inventory Capacity 4 | 2 2 2 2 3 3 3 3 3 3 3 3 3 3 4 4 4 4 4 4 4 4 4 4 4 4 4 4 4 4 4 Average Capacity 3 | 2 2 2 2 2 3 3 3 3 3 3 3 3 3 3 4 4 4 4 4 4 4 4 4 4 4 4 4 4 4 4 Most Carried 4 | . 2 2 2 3 3 3 3 3 3 3 3 3 3 4 4 4 4 4 4 4 4 4 4 3 4 4 4 4 4 4 Average Carried 3 | . 1 1 1 2 2 2 3 3 2 2 2 3 2 3 4 3 4 4 4 4 3 3 3 3 3 3 3 4 3 3 Final Capacity 4 | 2 2 2 2 3 3 3 3 3 3 3 3 3 3 4 4 4 4 4 4 4 4 4 4 4 4 4 4 4 4 4 Final Carried 4 | . 2 2 2 3 3 3 3 3 3 3 3 3 3 4 4 4 4 4 4 4 4 4 3 3 4 4 4 4 2 3 Class Distribution -------------------- 51% | Wizard-Sprinter 17% | Wizard-Scout 8% | Hacker-Sprinter 8% | Hacker-Mutant 7% | Mutant 5% | Commander-Sprinter Dominant Class ---------------- Mutant | -10/Materials Hacker-Mutant | -9/Materials Hacker-Mutant | -9/Storage Hacker-Sprinter | -8/Materials Wizard-Sprinter | -7/Factory Wizard-Sprinter | -7/Lower Caves Wizard-Sprinter | -7/Lower Caves Wizard-Sprinter | -7/Data Miner Wizard-Sprinter | -6/Proximity Caves Wizard-Sprinter | -6/Factory Wizard-Sprinter | -6/Garrison Wizard-Sprinter | -6/Factory Wizard-Sprinter | -6/DSF Wizard-Sprinter | -5/Factory Wizard-Sprinter | -5/Garrison Wizard-Sprinter | -5/Factory Wizard-Sprinter | -5/Extension Commander-Sprinter | -5/Cetus Commander-Sprinter | -5/Archives Wizard-Sprinter | -5/Hub_04(d) Wizard-Sprinter | -5/Garrison Wizard-Sprinter | -4/Factory Wizard-Sprinter | -4/Garrison Wizard-Sprinter | -4/Factory Wizard-Sprinter | -4/DSF Wizard-Scout | -3/Research Wizard-Scout | -3/Testing Wizard-Scout | -3/Garrison Wizard-Scout | -2/Research Wizard-Scout | -2/Quarantine Resources | -11 -10 -9 -9 -8 -7 -7 -7 -7 -6 -6 -6 -6 -6 -5 -5 -5 -5 -5 -5 -5 -5 -4 -4 -4 -4 -3 -3 -3 -2 -2 ----------- Run | Yrd Mat Mat Sto Mat Fac Low Low Dat Pro Fac Gar Fac DSF Fac Gar Fac Ext Cet Arc Hub Gar Fac Gar Fac DSF Res Tes Gar Res Qua Matter Collected 11311 | 266 413 906 430 795 523 219 50 . . 463 61 . 164 130 123 343 517 194 82 110 268 198 561 . 309 1063 748 854 744 777 Remotely 1489 | 164 413 896 16 . . . . . . . . . . . . . . . . . . . . . . . . . . . Salvage Created 29030 | 60 410 1111 841 1399 1309 198 527 . 197 1119 528 . 407 1903 957 1727 1736 708 522 2160 1791 439 830 50 42 3396 919 1407 1473 864 Parts 1438 | 3 24 77 56 91 53 17 10 . 5 48 33 . 24 85 60 70 70 31 22 94 93 43 64 1 17 119 43 76 66 43 Haulers Intercepted 37 | . 2 6 4 5 2 . . . . 1 . . . 3 . 3 . . . . . 1 . . . 8 . . 2 . Recyclers Shooed 9 | . . 2 . . . . . . . . . . . 1 . 2 . . . . . 1 . . . 1 . . 2 . Parts Field Recycled . | . . . . . . . . . . . . . . . . . . . . . . . . . . . . . . . Retrieved Matter . | . . . . . . . . . . . . . . . . . . . . . . . . . . . . . . . Parts Self-Destructed 18 | . . . . . . 13 5 . . . . . . . . . . . . . . . . . . . . . . . Prevented 13 | . . . . . . 5 7 . 1 . . . . . . . . . . . . . . . . . . . . . Parts Restored . | . . . . . . . . . . . . . . . . . . . . . . . . . . . . . . . Kills | -11 -10 -9 -9 -8 -7 -7 -7 -7 -6 -6 -6 -6 -6 -5 -5 -5 -5 -5 -5 -5 -5 -4 -4 -4 -4 -3 -3 -3 -2 -2 ------- Run | Yrd Mat Mat Sto Mat Fac Low Low Dat Pro Fac Gar Fac DSF Fac Gar Fac Ext Cet Arc Hub Gar Fac Gar Fac DSF Res Tes Gar Res Qua Combat Hostiles Destroyed 449 | . 12 28 20 33 24 13 7 . 1 17 14 . 8 26 26 19 22 8 3 23 31 5 17 . 7 26 11 23 16 9 Guns 252 | . 12 . 5 10 9 10 5 . . 7 11 . 8 22 14 13 9 3 . 8 22 5 16 . 6 17 6 19 10 5 Cannons 81 | . . 28 15 21 9 2 . . . 4 1 . . . . . . . . . . . . . . . . . 1 . AOE 16 | . . . . 2 1 . 2 . . . . . . 2 1 2 . . . 3 . . . . . . . 3 . . Classes Destroyed 23 | 1 5 4 1 3 3 . . . . 1 1 . . . . 1 . . . . 1 . . . . . 2 . . . Worker 19 | . . . 2 2 2 . . . . 2 . . . 2 . . . . . 2 . 4 . . . . 1 . 1 1 Builder 9 | . . 1 . 3 . . . . . 1 . . . . . 1 . . . 1 . 1 . . . . 1 . . . Tunneler 2 | . . 1 . . . . . . . . . . . . . . . . . 1 . . . . . . . . . . Hauler 37 | . 2 6 4 5 2 . . . . 1 . . . 3 . 3 . . . . . 1 . . . 8 . . 2 . Recycler 13 | 1 . . . 1 1 . . . . . . . . 1 . . . . . . . . . . . 4 . . 3 2 Operator 22 | . 1 3 2 3 . . . . . 1 . . . . . . 1 . 6 1 . 1 . . . 1 1 . 1 . Watcher 43 | . 2 5 2 3 . . . . . 2 . . . 4 . 5 3 2 . 3 . 3 1 1 . 4 . 1 2 . Swarmer 114 | . 9 6 3 8 . 13 3 . . 3 3 . 3 10 3 1 . . . . 10 1 4 . 4 10 4 11 5 . Cutter 5 | . . . . . . . . . . . . . . . . . . . . . 2 . . . 1 . . . 2 . Grunt 160 | . 3 11 9 12 15 . 3 . . 3 5 . 3 8 15 12 12 . . 14 9 . 5 . . 5 . 9 3 4 Brawler 11 | . . . . 1 . . 1 . . 1 . . . 1 2 . . . . . 4 . . . . . . . 1 . Duelist 6 | . . 1 . 1 2 . . . . . . . . . 1 1 . . . . . . . . . . . . . . Protector 3 | . . . . . . . . . . . . . . . . 1 . . . 1 . . . . . . . . . 1 Researcher 1 | . . . . . . . . . . . . . . . . . . . . . . . . . . . 1 . . . Sentry 78 | . . 10 8 9 3 . . . . 6 2 . . 2 3 2 10 . 4 5 2 2 . . . 8 . . 2 . Demolisher 1 | . . . . . 1 . . . . . . . . . . . . . . . . . . . . . . . . . Specialist 1 | . . . . . . . . . . . . . 1 . . . . . . . . . . . . . . . . . Hunter 28 | . . . . 1 . . . . 1 . 2 . . 4 1 . . . . 1 3 . 2 . 2 2 5 . . 4 Programmer 25 | . . . . . 2 . . . . 2 1 . . 1 2 2 . . . . 2 2 6 . . . . 2 3 . Heavy 5 | . . . . 1 . . . . . 1 . . 1 . . . . . . 2 . . . . . . . . . . Behemoth 6 | . . . . . . . . . . . 1 . . . . 1 1 . . . 1 . . . . 1 . 1 . . Cetus Guard 8 | . . . . . . . . . . . . . . . . . . 8 . . . . . . . . . . . . Striker 2 | . . . . . . . . . . . . . . . . . . . . . . . . . . . 2 . . . Packrat 3 | . . . . . . . 2 . 1 . . . . . . . . . . . . . . . . . . . . . Assembled 4 | . . . . . . . . . . 4 . . . . . . . . . . . . . . . . . . . . Thug 1 | . . . . . . . . . . . . . . . . . 1 . . . . . . . . . . . . . Infiltrator 1 | . . . . . 1 . . . . . . . . . . . . . . . . . . . . . . . . . Best Kill Streak 14 | 1 4 8 4 14 4 4 4 . 1 4 3 . 7 8 4 4 4 5 9 9 10 5 7 1 4 7 10 14 5 4 Combat Bots Only 14 | . 3 7 4 11 3 4 4 . 1 4 3 . 7 5 4 3 3 4 3 6 10 2 7 . 4 7 4 14 5 4 Max Kills in Single Turn 4 | 1 1 2 1 2 2 2 1 . 1 2 2 . 2 2 1 2 1 1 1 4 2 2 2 1 1 1 1 3 2 2 Gunslinging 1 | . . . . . . 1 . . . . 1 . 1 . . . . . . . . . 1 . . . . 1 1 1 Exploded 3 | . . . . 2 1 . 1 . . . . . . 2 1 1 . . . 3 . . . . . . . 3 . . Melee . | . . . . . . . . . . . . . . . . . . . . . . . . . . . . . . . Uniques/NPCs Destroyed . | . . . . . . . . . . . . . . . . . . . . . . . . . . . . . . . Combat | -11 -10 -9 -9 -8 -7 -7 -7 -7 -6 -6 -6 -6 -6 -5 -5 -5 -5 -5 -5 -5 -5 -4 -4 -4 -4 -3 -3 -3 -2 -2 -------- Run | Yrd Mat Mat Sto Mat Fac Low Low Dat Pro Fac Gar Fac DSF Fac Gar Fac Ext Cet Arc Hub Gar Fac Gar Fac DSF Res Tes Gar Res Qua Hostile Shots Fired 1978 | . 54 111 109 105 177 58 23 . 6 172 83 . 19 90 94 61 69 18 6 57 135 18 80 . 44 75 52 87 49 126 Missed 968 | . 15 40 45 38 83 22 10 . 4 111 44 . 8 49 52 28 28 11 4 24 67 13 44 . 26 43 29 51 23 56 Hits 1010 | . 39 71 64 67 94 36 13 . 2 61 39 . 11 41 42 33 41 7 2 33 68 5 36 . 18 32 23 36 26 70 Melee 12 | . . 5 . . . . 1 . . 1 . . . . . . . . . . 5 . . . . . . . . . Projectile 998 | . 39 66 64 67 94 36 12 . 2 60 39 . 11 41 42 33 41 7 2 33 63 5 36 . 18 32 23 36 26 70 AOE 12 | . . . . . 5 . . . . . . . . 1 . 1 . . . . 2 . . . 2 . . . 1 . Critical Strikes 42 | . . 4 2 3 1 1 . . . 1 1 . . . 1 3 2 . . 1 5 . 2 . . 1 1 . 2 11 Part Disruptions 5 | . . . . . 1 . . . . 1 . . 1 . . . . . . . . . . 1 . . . . . 1 Damage Taken 19417 | . 341 916 776 935 1515 428 228 . 27 1081 608 . 305 888 888 1043 798 117 72 1011 1460 127 686 23 343 719 484 730 826 2042 Core 13775 | . 277 695 538 569 1024 280 140 . 10 756 416 . 191 680 642 729 601 94 47 620 1018 75 470 11 260 550 373 562 601 1546 Absorbed by Shields 160 | . . . 6 . . . . . . . . . . 26 . . 11 67 . . 5 . 45 . . . . . . . Redirected to Core 11202 | . 205 484 415 411 740 202 140 . 10 626 315 . 150 553 564 589 457 62 47 600 882 75 447 11 195 431 296 522 502 1271 Redirected to Shielding 5 | . . 5 . . . . . . . . . . . . . . . . . . . . . . . . . . . . Ignored by Resistances 1592 | . . 22 45 97 112 125 42 . 8 69 79 . 34 66 13 31 68 36 15 88 116 4 32 . 65 97 80 54 97 97 Regen/Repaired (Parts) 1429 | . 11 84 201 176 350 . . . . . . . . 101 . 280 98 . . . . . . . . . 91 . 37 . Core Remaining (%) 85 | 100 81 . 84 100 . . . . 75 . . . 93 . . . . . . . 84 . . . 100 . . 56 . . Volleys Fired 1619 | 2 57 93 72 113 103 22 14 . 4 78 43 . 16 68 96 71 115 14 18 70 94 25 84 1 34 101 35 67 62 47 Largest 3 | 2 2 2 2 2 2 2 2 . 2 2 2 . 2 3 3 3 3 3 3 3 3 3 3 2 3 3 3 3 3 3 Hottest 225 | 60 80 78 78 85 105 115 115 . 115 115 115 . 115 180 180 190 190 190 190 190 225 190 190 115 190 225 225 190 225 190 Shots Fired 3633 | 4 112 179 140 226 199 44 28 . 9 154 86 . 32 189 276 204 213 42 50 169 212 67 143 2 68 264 97 189 107 128 Gun 3031 | 4 108 3 66 113 143 34 28 . 9 129 78 . 32 189 272 198 160 42 47 168 212 67 138 2 68 262 94 187 59 119 Cannon 507 | . 2 176 74 113 56 10 . . . 25 8 . . . . . . . . . . . . . . . . . 42 1 Launcher 13 | . 2 . . . . . . . . . . . . . . . . . . . . . . . . . . . 3 8 Special 82 | . . . . . . . . . . . . . . . 4 6 53 . 3 1 . . 5 . . 2 3 2 3 . Kinetic 929 | 2 103 176 74 113 56 10 . . . 25 8 . . . . . . . . . 11 25 79 1 33 72 21 61 18 41 Thermal 9 | 2 7 . . . . . . . . . . . . . . . . . . . . . . . . . . . . . Explosive 13 | . 2 . . . . . . . . . . . . . . . . . . . . . . . . . . . 3 8 Electromagnetic 2600 | . . 3 66 113 143 34 28 . 9 129 78 . 32 189 272 198 160 42 47 168 201 42 59 1 35 190 73 126 83 79 Robot Hit Streak 48 | 1 9 17 19 18 21 11 19 . 10 48 34 . 22 46 28 40 38 44 29 30 30 31 38 1 26 41 22 22 30 35 Robot Miss Streak 7 | 1 3 6 5 7 3 5 2 . . 2 1 . 1 2 1 4 2 2 1 4 4 1 2 1 2 5 1 3 2 3 Penetration Max 2 | . . . . 1 1 . . . . . . . . . . . . . . . . 1 1 . 1 1 2 2 1 1 Secondary Targets 38 | . . . . . . 3 . . . . 1 . 2 3 . 2 3 2 . 1 3 1 3 . . 2 1 7 2 2 Max Gunslinging Chain 1 | . . . . . . 1 . . . . 1 . 1 1 . 1 1 1 . 1 1 1 1 . . 1 1 1 1 1 Shots Hit Robots 2717 | 2 58 113 94 168 169 26 24 . 8 127 64 . 29 153 172 156 191 38 45 136 137 55 89 1 58 206 75 152 85 86 Core Hits 1060 | 2 22 47 36 63 53 15 15 . 3 45 33 . 15 68 60 69 51 16 17 51 56 27 35 3 16 75 28 67 40 32 Critical Kills 53 | . 1 . . . . . . . . . . . . . . . . . . . 2 5 12 . 4 13 2 4 6 4 Critical Parts Destroyed 71 | . . . . . . . . . . . . . . . . . . . . . . 4 13 . 9 15 5 19 2 4 Critical Strikes 234 | . 1 3 3 10 10 1 . . . 6 6 . 1 2 6 2 2 . 1 5 7 15 28 . 14 37 12 36 14 12 Destroy 129 | . 1 . . . . . . . . . . . . . . . . . . . 2 10 25 . 13 29 8 25 8 8 Blast 25 | . . 3 1 9 9 . . . . 2 1 . . . . . . . . . . . . . . . . . . . Corrupt 80 | . . . 2 1 1 1 . . . 4 5 . 1 2 6 2 2 . 1 5 5 5 3 . 1 8 4 11 6 4 Melee Attacks 2 | . . . . . . 2 . . . . . . . . . . . . . . . . . . . . . . . . Impact . | . . . . . . . . . . . . . . . . . . . . . . . . . . . . . . . Slashing 2 | . . . . . . 2 . . . . . . . . . . . . . . . . . . . . . . . . Piercing . | . . . . . . . . . . . . . . . . . . . . . . . . . . . . . . . Sneak Attacks . | . . . . . . . . . . . . . . . . . . . . . . . . . . . . . . . Combat Hostiles . | . . . . . . . . . . . . . . . . . . . . . . . . . . . . . . . Follow-up Attacks . | . . . . . . . . . . . . . . . . . . . . . . . . . . . . . . . Damage Inflicted 58390 | 23 752 2622 2014 3950 3580 643 634 . 197 2838 1774 . 565 3317 3198 3342 3432 1125 1064 4050 2954 1272 1334 86 916 4279 1780 2812 2392 1445 Guns 43097 | 23 752 18 674 1305 1774 436 517 . 197 1933 1210 . 565 3066 3056 2867 3250 824 1005 3000 2925 966 1334 . 916 4220 1652 2520 863 1229 Cannons 9759 | . . 2604 1303 2432 1468 142 . . . 486 69 . . . . . . . . . . . . . . . . . 1255 . Explosions 5534 | . . . 37 213 338 65 117 . . 419 495 . . 251 142 475 182 301 59 1050 29 306 . 86 . 59 128 292 274 216 Melee . | . . . . . . . . . . . . . . . . . . . . . . . . . . . . . . . Ramming . | . . . . . . . . . . . . . . . . . . . . . . . . . . . . . . . Kinetic 11576 | . 708 2604 1303 2432 1468 142 . . . 486 69 . . . . . . . . . 49 205 458 . 246 471 155 466 149 165 Thermal 3747 | 23 44 . 37 149 189 65 117 . . 205 360 . . 184 142 475 48 301 59 595 . 275 . . . 59 128 292 . . Explosive 1052 | . . . . 64 149 . . . . 214 135 . . . . . . . . . . . . . . . . . 274 216 Electromagnetic 42015 | . . 18 674 1305 1774 436 517 . 197 1933 1210 . 565 3133 3056 2867 3384 824 1005 3455 2905 792 876 86 670 3749 1497 2054 1969 1064 Impact . | . . . . . . . . . . . . . . . . . . . . . . . . . . . . . . . Slashing . | . . . . . . . . . . . . . . . . . . . . . . . . . . . . . . . Piercing . | . . . . . . . . . . . . . . . . . . . . . . . . . . . . . . . Highest Corruption 22 | . . . . . 4 4 4 4 4 6 6 6 6 2 4 9 9 9 9 11 21 2 5 6 6 . . 1 . 22 Average Corruption 6 | . . . . . 1 4 4 4 4 4 6 6 6 1 2 5 9 9 9 10 16 2 4 5 6 . . 1 . 10 Corruption Purged . | . . . . . . . . . . . . . . . . . . . . . . . . . . . . . . . Corruption Blocked . | . . . . . . . . . . . . . . . . . . . . . . . . . . . . . . . Effects 255 | . . . . . 6 7 4 . 4 21 13 . 4 . 17 36 35 10 8 22 45 . 8 1 5 . . 1 . 8 Message Errors 50 | . . . . . 2 1 . . . 3 3 . 1 . 4 8 8 3 . 5 8 . 1 . 1 . . 1 . 1 Matter Fused 51 | . . . . . . 3 . . 1 5 3 . . . 2 5 9 2 3 5 7 . 3 1 1 . . . . 1 Heat Flow Errors 33 | . . . . . 1 1 1 . 1 4 . . . . 4 10 2 2 . 3 1 . 1 . 2 . . . . . Energy Discharges 27 | . . . . . . 1 2 . . 3 1 . 1 . 2 1 4 1 2 2 6 . . . . . . . . 1 Parts Rejected 4 | . . . . . . . . . . 1 . . 1 . . . . . . . 2 . . . . . . . . . Parts Fused 7 | . . . . . . . . . . . . . . . 1 2 1 . . . 3 . . . . . . . . . Data Loss (minor) 21 | . . . . . 1 1 1 . 1 1 1 . 1 . . 3 1 1 1 3 2 . 2 . . . . . . 1 Data Loss (major) 9 | . . . . . . . . . . . 1 . . . 1 1 2 1 . 2 1 . . . . . . . . . Misfires 18 | . . . . . . . . . 1 1 2 . . . 1 4 2 . 2 1 3 . 1 . . . . . . . Alerts 4 | . . . . . 1 . . . . . . . . . . 1 1 . . . 1 . . . . . . . . . Misdirections 1 | . . . . . . . . . . . . . . . . . . . . . 1 . . . . . . . . . Weapon Failures 30 | . . . . . 1 . . . . 3 2 . . . 2 1 5 . . 1 10 . . . 1 . . . . 4 Overload Shots . | . . . . . . . . . . . . . . . . . . . . . . . . . . . . . . . Overflow Damage 528 | . . 70 35 65 38 70 . . . 34 . . . . . 79 . . . 29 . 48 . . . . . . 60 . Projectiles 268 | . . 70 35 30 38 10 . . . 25 . . . . . . . . . . . . . . . . . . 60 . Explosions 260 | . . . . 35 . 60 . . . 9 . . . . . 79 . . . 29 . 48 . . . . . . . . Melee . | . . . . . . . . . . . . . . . . . . . . . . . . . . . . . . . Knockbacks 56 | . . 22 7 10 5 4 . . . 8 . . . . . . . . . . . . . . . . . . . . Impact . | . . . . . . . . . . . . . . . . . . . . . . . . . . . . . . . Kinetic 53 | . . 21 7 10 5 3 . . . 7 . . . . . . . . . . . . . . . . . . . . Secondary 3 | . . 1 . . . 1 . . . 1 . . . . . . . . . . . . . . . . . . . . Self-Inflicted Damage 1140 | . . . 69 74 92 . 45 . . 309 . . . 71 . 78 . . . 170 63 . . 26 . 58 85 . . . Shots 26 | . . . 2 2 1 . 1 . . 7 . . . 2 . 2 . . . 3 2 . . 2 . 1 1 . . . Rammed . | . . . . . . . . . . . . . . . . . . . . . . . . . . . . . . . Targets Rammed . | . . . . . . . . . . . . . . . . . . . . . . . . . . . . . . . Kicked . | . . . . . . . . . . . . . . . . . . . . . . . . . . . . . . . Crushed . | . . . . . . . . . . . . . . . . . . . . . . . . . . . . . . . Highest Temperature 422 | . 6 264 386 185 312 273 394 . 116 221 44 . . 321 371 251 422 215 184 274 273 196 188 6 103 404 388 380 124 . Average Temperature 82 | . 3 42 113 67 82 104 176 . 38 68 14 . . 84 86 67 82 90 71 43 58 57 58 6 32 77 126 145 43 . Received Heat Transfer 3113 | . 51 402 281 369 249 . 9 . . 156 90 . 45 75 198 81 546 . . 171 135 . 42 . . 51 . 90 36 36 Effects 28 | . . . 6 . 3 . 3 . . . . . . 1 3 2 1 . . . . . . . . 1 1 7 . . Shutdowns 6 | . . . 1 . . . . . . . . . . . . . . . . . . . . . . 1 1 3 . . Energy Bleed 9 | . . . 3 . . . 2 . . . . . . . 1 2 . . . . . . . . . . . 1 . . Interference 12 | . . . 2 . 3 . 1 . . . . . . 1 2 . . . . . . . . . . . . 3 . . Short Circuit 1 | . . . . . . . . . . . . . . . . . 1 . . . . . . . . . . . . . Siege Activations . | . . . . . . . . . . . . . . . . . . . . . . . . . . . . . . . Martial Activations . | . . . . . . . . . . . . . . . . . . . . . . . . . . . . . . . Shielding Activations . | . . . . . . . . . . . . . . . . . . . . . . . . . . . . . . . Robots Disrupted 13 | . . . . . . . . . . . 1 . 1 . . . 4 . . 1 1 1 . . . . . 2 2 . Combat Hostiles 13 | . . . . . . . . . . . 1 . 1 . . . 4 . . 1 1 1 . . . . . 2 2 . Robots Corrupted 117 | . . . . . 5 1 . . 1 7 2 . . 4 12 5 14 5 5 12 10 1 1 . 1 14 5 1 7 4 Combat Hostiles 100 | . . . . . 5 1 . . 1 6 2 . . 2 11 4 13 5 3 12 9 . 1 . 1 9 5 1 5 4 Parts Fried 349 | . . . 5 1 8 1 . . 1 20 9 . 1 22 38 25 22 3 16 23 22 9 9 . 5 41 15 17 21 15 Impact Corruptions 1 | . . . . . . 1 . . . . . . . . . . . . . . . . . . . . . . . . Robots Melted . | . . . . . . . . . . . . . . . . . . . . . . . . . . . . . . . Combat Hostiles . | . . . . . . . . . . . . . . . . . . . . . . . . . . . . . . . Parts Melted 3 | . . . . . . . . . . . . . . . . . 1 . . . . . . . . . . 2 . . Heat Transferred 3350 | 50 100 . . 200 200 50 100 . . 200 350 . . 150 100 400 50 200 50 600 . 200 . . . 50 100 200 . . Parts Sabotaged . | . . . . . . . . . . . . . . . . . . . . . . . . . . . . . . . Parts Stolen . | . . . . . . . . . . . . . . . . . . . . . . . . . . . . . . . Parts Stripped . | . . . . . . . . . . . . . . . . . . . . . . . . . . . . . . . Power Chain Reactions 48 | . . . 2 4 4 1 3 . . 5 2 . . 4 2 4 2 1 1 7 2 1 . . . 1 1 1 . . Alert | -11 -10 -9 -9 -8 -7 -7 -7 -7 -6 -6 -6 -6 -6 -5 -5 -5 -5 -5 -5 -5 -5 -4 -4 -4 -4 -3 -3 -3 -2 -2 ------- Run | Yrd Mat Mat Sto Mat Fac Low Low Dat Pro Fac Gar Fac DSF Fac Gar Fac Ext Cet Arc Hub Gar Fac Gar Fac DSF Res Tes Gar Res Qua Maximum Alert Level 4 | . . 2 2 2 2 . . . . 1 3 2 2 3 4 3 2 1 1 3 4 4 4 3 2 3 2 3 2 2 Low Security (%) 22 | 100 100 50 32 43 15 . . . . 82 21 . . 22 . . . . 12 16 . . . . . . 45 1 . . Level 1 27 | . . 14 38 48 39 . . . . 17 8 . 64 33 . 36 82 100 87 59 5 . . . . 7 32 24 . 38 Level 2 34 | . . 34 29 8 44 . . . . . 44 100 35 42 26 56 17 . . 21 36 4 . 37 100 87 22 36 100 61 Level 3 12 | . . . . . . . . . . . 25 . . 1 51 6 . . . 3 50 93 60 62 . 5 . 37 . . Level 4 2 | . . . . . . . . . . . . . . . 22 . . . . . 6 2 39 . . . . . . . Level 5 . | . . . . . . . . . . . . . . . . . . . . . . . . . . . . . . . High Security . | . . . . . . . . . . . . . . . . . . . . . . . . . . . . . . . Max Security . | . . . . . . . . . . . . . . . . . . . . . . . . . . . . . . . Sterilizations 1 | . . . . . . . . . . . . . 1 . . . . . . . . . . . . . . . . . Peak Influence 1346 | 5 113 583 432 422 695 . . . . 253 802 420 474 707 1346 728 447 378 269 742 1134 1127 1270 723 581 741 465 829 695 669 Initial 788 | . . 39 41 141 186 . . . . 18 112 420 294 248 489 706 294 232 123 72 331 595 788 666 492 326 416 175 465 379 Average 431 | 1 38 262 275 223 374 . . . . 130 492 420 361 387 909 503 335 331 228 333 728 930 1033 695 513 529 241 558 533 454 Influence Increases 17277 | 5 393 960 837 1395 937 305 160 . 30 669 730 . 180 927 867 828 825 276 176 1621 853 742 502 57 129 863 344 694 502 470 Destroy 0b10 Robot/C 8365 | . 240 560 420 700 440 260 140 . 20 260 280 . 160 520 495 360 435 120 45 555 495 90 270 . 105 435 180 390 270 120 Destroy 0b10 Robot/NC 694 | 5 25 80 50 90 25 5 . . . 35 5 . . 50 . 52 16 8 24 40 . 40 4 4 . 68 12 4 36 16 Destroy Leader 1770 | . 58 182 152 208 114 40 20 . 10 94 40 . 20 114 30 82 38 . . 150 40 40 40 2 16 144 16 40 64 16 Allied During Kill 1134 | . . . 32 56 . . . . . 2 15 . . 1 . 69 312 128 69 342 12 11 8 3 4 12 8 44 6 . Successful Hack 310 | . 47 28 34 44 35 . . . . 29 . . . 10 . 17 6 . . . . . 6 . . . 12 12 30 . Select Force Hacks 76 | . . . . . . . . . . . . . . . . . . . . 76 . . . . . . . . . . Disable Machine 1347 | . 15 30 75 90 120 . . . . 195 . . . 30 . 96 . . 36 96 12 336 . 48 . 48 48 . 36 36 Anti-Garrison Action 717 | . . . . . . . . . . . 200 . . . 138 . . . . . 76 113 114 . . . . 76 . . Destroy Structure 1463 | . 8 20 14 102 38 . . . . 24 100 . . 22 117 104 6 20 2 314 62 88 48 . 4 12 20 20 60 258 Partial Spotted 237 | . . . 15 15 . . . . . . 30 . . 30 27 . 12 . . . 48 . . . . 36 12 12 . . Lose Combat Pursuer 1164 | . . 60 45 90 165 . . . . 30 60 . . 150 60 48 . . . 48 108 24 12 . . 108 36 96 . 24 Influence Decreases 16608 | 5 298 956 602 1319 658 426 209 519 . 538 89 382 126 702 220 1574 1010 383 275 1357 192 749 359 624 251 703 851 99 656 476 Entered New Map 7005 | . . 56 58 193 224 256 109 519 . 12 49 382 126 226 210 640 306 183 185 137 142 539 339 604 211 255 325 59 364 296 Time Decay 5471 | 5 298 440 374 404 434 170 100 . . 356 . . . 326 . 494 334 140 90 230 . 190 . 20 . 428 206 . 262 170 Lost Part 110 | . . 10 . . . . . . . 20 . . . . 10 10 . . . 10 30 . . . . . . . 10 10 Lost Ally 1230 | . . . 20 180 . . . . . . 40 . . . . 130 220 60 . 380 20 20 20 . 40 20 20 40 20 . Purge Threat 2792 | . . 450 150 542 . . . . . 150 . . . 150 . 300 150 . . 600 . . . . . . 300 . . . Squads Dispatched 66 | . 1 2 2 5 8 . . . . 3 . . 1 6 . 10 . . . 16 . 3 . . 2 2 1 . 3 1 Investigation 16 | . . 1 1 2 . . . . . . . . . 1 . 1 . . . 8 . . . . . 1 . . 1 . Extermination 14 | . . . . . 3 . . . . 2 . . . 1 . 3 . . . 1 . 1 . . . . 1 . 1 1 Reinforcement 24 | . 1 1 1 3 2 . . . . 1 . . 1 4 . 5 . . . 1 . . . . 2 1 . . 1 . Assault 5 | . . . . . . . . . . . . . . . . 1 . . . 2 . 2 . . . . . . . . Garrison 7 | . . . . . 3 . . . . . . . . . . . . . . 4 . . . . . . . . . . Intercept . | . . . . . . . . . . . . . . . . . . . . . . . . . . . . . . . Searches Triggered . | . . . . . . . . . . . . . . . . . . . . . . . . . . . . . . . Unchained Authorized 2 | . . . . . 1 . . . . . . . . . . . . . . . . . . . . . 1 . . . Data Miner Redirects 4 | . . . . . . . . . . . . . . . . 1 . . . 3 . . . . . . . . . . Construction Impeded 1 | . . . . . 1 . . . . . . . . . . . . . . . . . . . . . . . . . Haulers Reinforced 5 | . . . . . 1 . . . . . . . . 2 . 1 . . . . . . . . . 1 . . . . Active Scanning Responses . | . . . . . . . . . . . . . . . . . . . . . . . . . . . . . . . Cargo Convoy Interrupts 1 | . . . . . . . . . . . . . . . . 1 . . . . . . . . . . . . . . Stealth | -11 -10 -9 -9 -8 -7 -7 -7 -7 -6 -6 -6 -6 -6 -5 -5 -5 -5 -5 -5 -5 -5 -4 -4 -4 -4 -3 -3 -3 -2 -2 --------- Run | Yrd Mat Mat Sto Mat Fac Low Low Dat Pro Fac Gar Fac DSF Fac Gar Fac Ext Cet Arc Hub Gar Fac Gar Fac DSF Res Tes Gar Res Qua Distress Signals 19 | . 1 2 2 3 . . . . . . . . . 1 . 1 . 2 . 2 . . 1 . . 4 . . . . Communications Jammed 79 | . . . . . . . . . . 10 . . . 1 . 8 6 . . 24 . . . . 1 6 1 2 7 13 Distress Signals 40 | . . . . . . . . . . 2 . . . 1 . 8 6 . . 9 . . . . . 6 1 2 1 4 Times Spotted 632 | . 17 38 29 44 34 14 8 . 1 22 14 . 7 37 28 41 32 9 4 40 44 14 19 1 9 41 14 33 20 18 Peak Tracking Total 10 | . 4 8 6 6 3 4 4 . 1 2 5 . 2 6 4 3 3 5 1 5 5 2 7 1 4 8 4 7 5 10 Tactical Retreats 60 | . 1 2 3 4 8 . . . . 2 1 . . 6 3 4 . . . 2 6 2 1 . . 5 2 7 . 1 ECM-based Alert Blocks 1 | . 1 . . . . . . . . . . . . . . . . . . . . . . . . . . . . . Traps | -11 -10 -9 -9 -8 -7 -7 -7 -7 -6 -6 -6 -6 -6 -5 -5 -5 -5 -5 -5 -5 -5 -4 -4 -4 -4 -3 -3 -3 -2 -2 ------- Run | Yrd Mat Mat Sto Mat Fac Low Low Dat Pro Fac Gar Fac DSF Fac Gar Fac Ext Cet Arc Hub Gar Fac Gar Fac DSF Res Tes Gar Res Qua Traps Triggered 51 | . . 1 2 2 . . . . . 2 1 . 3 5 13 2 2 . . . 4 . 4 . . 2 1 5 . 2 Indirectly . | . . . . . . . . . . . . . . . . . . . . . . . . . . . . . . . Trap Hack Attempts . | . . . . . . . . . . . . . . . . . . . . . . . . . . . . . . . Triggered . | . . . . . . . . . . . . . . . . . . . . . . . . . . . . . . . Disarmed . | . . . . . . . . . . . . . . . . . . . . . . . . . . . . . . . Reprogrammed 4 | . . . . . . . . . . . . . . . . . . . . 4 . . . . . . . . . . Reused . | . . . . . . . . . . . . . . . . . . . . . . . . . . . . . . . Traps Extracted . | . . . . . . . . . . . . . . . . . . . . . . . . . . . . . . . Installed . | . . . . . . . . . . . . . . . . . . . . . . . . . . . . . . . Triggered . | . . . . . . . . . . . . . . . . . . . . . . . . . . . . . . . Objects Rigged 1 | . . . . . . . . . . . . . . . . . . . . 1 . . . . . . . . . . Machines | -11 -10 -9 -9 -8 -7 -7 -7 -7 -6 -6 -6 -6 -6 -5 -5 -5 -5 -5 -5 -5 -5 -4 -4 -4 -4 -3 -3 -3 -2 -2 ---------- Run | Yrd Mat Mat Sto Mat Fac Low Low Dat Pro Fac Gar Fac DSF Fac Gar Fac Ext Cet Arc Hub Gar Fac Gar Fac DSF Res Tes Gar Res Qua Machines Disabled 121 | . 1 2 5 6 8 . . . . 13 6 . . 2 3 8 1 . 3 8 3 29 3 4 . 4 4 2 3 3 Max in Single Turn 20 | . 1 1 1 1 2 . . . . 4 2 . . 1 1 3 1 . . 4 1 20 1 4 . 2 1 1 2 2 Garrison Access 4 | . . . . 1 . . . . . . . . . . . . . . . 1 . 1 . . . 1 . . . . Garrison Relay 12 | . . . . . . . . . . . 2 . . . 3 . . . . . 2 . 3 . . . . 2 . . Phase Generator 1 | . . . . . . . . . . . 1 . . . . . . . . . . . . . . . . . . . Network Hub 3 | . . . . . . . . . . . . . . . . . . . . 3 . . . . . . . . . . Machines Repaired . | . . . . . . . . . . . . . . . . . . . . . . . . . . . . . . . Machines Dismantled . | . . . . . . . . . . . . . . . . . . . . . . . . . . . . . . . Machines Sabotaged 2 | . . . . . . . . . . . . . . . . . . . . 2 . . . . . . . . . . Overloaded Fab Kills . | . . . . . . . . . . . . . . . . . . . . . . . . . . . . . . . Hacking | -11 -10 -9 -9 -8 -7 -7 -7 -7 -6 -6 -6 -6 -6 -5 -5 -5 -5 -5 -5 -5 -5 -4 -4 -4 -4 -3 -3 -3 -2 -2 --------- Run | Yrd Mat Mat Sto Mat Fac Low Low Dat Pro Fac Gar Fac DSF Fac Gar Fac Ext Cet Arc Hub Gar Fac Gar Fac DSF Res Tes Gar Res Qua Machines Accessed 165 | . 8 16 13 12 14 1 . 4 . 15 2 1 . 10 3 12 9 2 1 9 2 5 3 2 . 1 6 1 7 6 Terminals 105 | . 6 10 9 8 7 . . . . 9 2 1 . 4 3 6 8 2 . 8 2 1 3 1 . . 3 1 5 6 Fabricators 7 | . . . . . 2 . . . . 1 . . . 1 . 1 . . . . . 1 . . . . . . 1 . Repair Stations 17 | . 1 2 2 2 3 . . . . . . . . 2 . 2 1 . . . . . . . . . 1 . 1 . Recycling Units 13 | . 1 2 2 . 1 . . . . 3 . . . 1 . 2 . . . . . 1 . . . . . . . . Scanalyzers 7 | . . 2 . 1 . . . . . . . . . 1 . . . . . . . 1 . 1 . . 1 . . . Garrison Access 10 | . . . . 1 1 . . . . 2 . . . 1 . 1 . . . 1 . 1 . . . 1 1 . . . Total Hacks 723 | . 28 67 55 54 69 1 . 28 . 77 5 1 . 48 5 47 32 5 25 41 5 15 5 5 . 1 41 12 30 21 Successful 556 | . 17 59 45 42 57 1 . 28 . 59 2 1 . 33 3 38 22 5 25 34 2 11 3 3 . 1 34 4 16 11 Failed 162 | . 11 8 9 11 11 . . . . 17 3 . . 15 2 9 10 . . 7 3 3 2 2 . . 7 8 14 10 Catastrophic 17 | . . 1 1 . . . . . . . . . . 4 . 2 . . . . . 1 . . . . 2 2 4 . Database Lockouts 5 | . . . 1 1 1 . . . . 1 . . . . . . . . . . . 1 . . . . . . . . Manual 316 | . 15 45 32 24 33 . . . . 48 . . . 20 . 24 7 1 . 20 . 9 . . . . 10 11 10 7 Terminals 479 | . 24 47 43 41 41 . . . . 59 5 1 . 28 5 25 25 5 . 40 5 5 5 1 . . 22 12 19 21 Fabricators 27 | . . . . . 7 . . . . 3 . . . 2 . 5 . . . . . 2 . . . . . . 8 . Repair Stations 79 | . 3 6 10 6 17 . . . . . . . . 6 . 11 7 . . . . . . . . . 10 . 3 . Recycling Units 33 | . 1 5 2 . 2 . . . . 12 . . . 5 . 2 . . . . . 4 . . . . . . . . Scanalyzers 33 | . . 9 . 3 . . . . . . . . . 6 . . . . . . . 3 . 4 . . 8 . . . Garrison Access 18 | . . . . 4 2 . . . . 3 . . . 1 . 4 . . . 1 . 1 . . . 1 1 . . . Terminal Hacks 278 | . 9 22 23 18 18 1 . 28 . 26 2 1 . 9 3 11 16 5 25 22 2 . 3 1 . . 11 4 9 9 Record 60 | . . . . 1 2 . . 11 . 6 . . . . . 2 2 4 25 3 . . . . . . 1 . . 3 Part Schematic 16 | . . . . . 2 . . 10 . 1 . . . . . 1 . . . 2 . . . . . . . . . . Robot Schematic 10 | . . . . . 1 . . 4 . . . . . 1 . 2 . . . 2 . . . . . . . . . . Robot Analysis 24 | . 4 4 3 . 3 . . . . 2 . . . 1 . . 4 . . 1 . . . . . . . . 2 . Prototype ID Bank 36 | . 2 3 8 1 2 . . 3 . 1 . . . 2 . 1 4 . . 3 . . . . . . 3 . 2 1 Open Door 7 | . . . 2 . . 1 . . . . . . . . . 1 1 1 . . . . . . . . . . . 1 Open DSF 4 | . . . . . . . . . . . . 1 . 1 . . . . . . . . . 1 . . . . 1 . Level Access Points 8 | . . 1 1 1 1 . . . . 1 . . . . . . 1 . . . . . . . . . 1 . . 1 Branch Access Points 8 | . 1 1 1 1 1 . . . . 1 . . . . . . 1 . . . . . . . . . . . 1 . Emergency Access Points 6 | . . 1 . . . . . . . . 1 . . . 1 . . . . . 1 . 1 . . . . 1 . . Terminal Index 10 | . 1 1 1 1 1 . . . . 1 . . . . . 1 . . . 1 . . . . . . 1 . . 1 Fabricator Index 3 | . . . . . 1 . . . . 1 . . . . . 1 . . . . . . . . . . . . . . Repair Station Index 1 | . . . . . . . . . . 1 . . . . . . . . . . . . . . . . . . . . Recycling Unit Index 2 | . . . . . . . . . . . . . . . . . 1 . . . . . . . . . . . . 1 Scanalyzer Index 3 | . . . . . . . . . . . . . . 1 . . . . . . . . . . . . 1 . . 1 Garrison Index 3 | . . . 1 . . . . . . 1 . . . . . . . . . 1 . . . . . . . . . . Alert Level 11 | . . 4 1 3 . . . . . 3 . . . . . . . . . . . . . . . . . . . . Unreport Threat 20 | . . 3 1 5 . . . . . 1 . . . 1 . 2 1 . . 4 . . . . . . 2 . . . Locate Traps 2 | . . 1 . . . . . . . . . . . 1 . . . . . . . . . . . . . . . . Reprogram Traps 1 | . . . . . . . . . . . . . . . . . . . . 1 . . . . . . . . . . Dispatch Records 4 | . . 1 . 1 1 . . . . 1 . . . . . . . . . . . . . . . . . . . . Security Status 3 | . . . 1 1 . . . . . 1 . . . . . . . . . . . . . . . . . . . . Surveillance Status 1 | . . . . 1 . . . . . . . . . . . . . . . . . . . . . . . . . . Transport Status 1 | . . . . . 1 . . . . . . . . . . . . . . . . . . . . . . . . . Reinforcement Status 1 | . . . . 1 . . . . . . . . . . . . . . . . . . . . . . . . . . Garrison Status 2 | . . . 1 . . . . . . 1 . . . . . . . . . . . . . . . . . . . . Recall Investigation 1 | . . . . . . . . . . . . . . . . . . . . 1 . . . . . . . . . . Recall Extermination 2 | . . . . . . . . . . 1 . . . . . . . . . 1 . . . . . . . . . . Recall Reinforcements 1 | . . . . . . . . . . . . . . . . . . . . . . . . . . . . . 1 . Hauler Manifests 2 | . . . . . 1 . . . . 1 . . . . . . . . . . . . . . . . . . . . Registered Components 6 | . 1 1 1 1 . . . . . . . . . 1 . . . . . . . . . . . . . . 1 . Registered Prototypes 4 | . . . 1 . . . . . . 1 . . . . . . . . . 1 . . . . . . . . 1 . Zone Layout 5 | . . 1 . . 1 . . . . . . . . . . . 1 . . 1 . . . . . . 1 . . . Garrison Registry 4 | . . . . . . . . . . . 1 . . . 1 . . . . . . . 1 . . . . 1 . . Patrol Navigation 3 | . . . . . . . . . . . . . . . 1 . . . . . . . 1 . . . . 1 . . Security Stations 2 | . . . . . . . . . . . . . . . . . . . . . 1 . . . . . . 1 . . Protovariant Controls 1 | . . . . . . . . . . . . . . . . . . . . . . . . . . . 1 . . . Fabricator Hacks 9 | . . . . . 2 . . . . . . . . 1 . 3 . . . . . 2 . . . . . . 1 . Network Status 4 | . . . . . 2 . . . . . . . . 1 . . . . . . . . . . . . . . 1 . Load Schematic 2 | . . . . . . . . . . . . . . . . 1 . . . . . 1 . . . . . . . . Build 3 | . . . . . . . . . . . . . . . . 2 . . . . . 1 . . . . . . . . Repair Station Hacks 70 | . 2 6 10 6 16 . . . . . . . . 4 . 9 6 . . . . . . . . . 9 . 2 . Scan Component 36 | . 1 3 5 3 8 . . . . . . . . 2 . 5 3 . . . . . . . . . 5 . 1 . Repair 34 | . 1 3 5 3 8 . . . . . . . . 2 . 4 3 . . . . . . . . . 4 . 1 . Recycling Unit Hacks 8 | . . 1 2 . 1 . . . . 1 . . . 1 . 2 . . . . . . . . . . . . . . Report Inventory 8 | . . 1 2 . 1 . . . . 1 . . . 1 . 2 . . . . . . . . . . . . . . Scanalyzer 30 | . . 9 . 3 . . . . . . . . . 6 . . . . . . . 2 . 2 . . 8 . . . Insert Component 6 | . . 2 . . . . . . . . . . . 1 . . . . . . . . . . . . 3 . . . Analyze 5 | . . 3 . . . . . . . . . . . . . . . . . . . . . . . . 2 . . . Retrieve Study 19 | . . 4 . 3 . . . . . . . . . 5 . . . . . . . 2 . 2 . . 3 . . . Garrison Access Hacks 7 | . . . . 1 . . . . . 1 . . . 1 . . . . . 1 . 1 . . . 1 1 . . . Unlock Access 5 | . . . . . . . . . . 1 . . . 1 . . . . . 1 . 1 . . . . 1 . . . Seal Access 1 | . . . . 1 . . . . . . . . . . . . . . . . . . . . . . . . . . Coupler Status 1 | . . . . . . . . . . . . . . . . . . . . . . . . . . 1 . . . . Unauthorized Hacks 153 | . 6 21 10 14 20 . . . . 31 . . . 11 . 13 . . . 10 . 6 . . . . 5 . 4 2 Terminals 114 | . 6 18 10 14 15 . . . . 16 . . . 6 . 8 . . . 10 . 2 . . . . 5 . 2 2 Track 1 | . . . . . . . . . . 1 . . . . . . . . . . . . . . . . . . . . Assimilate 2 | . . . . . . . . . . 1 . . . . . . . . . . . . . . . . 1 . . . Botnet 53 | . 4 10 6 6 7 . . . . 8 . . . 3 . 5 . . . . . 1 . . . . 1 . 1 1 Detonate 3 | . . . . . . . . . . . . . . . . . . . . 2 . . . . . . 1 . . . Operators 8 | . 1 2 . 1 2 . . . . 1 . . . . . . . . . . . . . . . . 1 . . . Skim 39 | . 1 6 4 7 6 . . . . 5 . . . 3 . 3 . . . . . 1 . . . . 1 . 1 1 Sabotage 8 | . . . . . . . . . . . . . . . . . . . . 8 . . . . . . . . . . Fabricators 11 | . . . . . 5 . . . . 2 . . . 1 . 1 . . . . . . . . . . . . 2 . Report 4 | . . . . . 2 . . . . 1 . . . . . . . . . . . . . . . . . . 1 . Liberate 1 | . . . . . . . . . . . . . . . . 1 . . . . . . . . . . . . . . Fabnet 5 | . . . . . 2 . . . . 1 . . . 1 . . . . . . . . . . . . . . 1 . Haulers 1 | . . . . . 1 . . . . . . . . . . . . . . . . . . . . . . . . . Repair Stations . | . . . . . . . . . . . . . . . . . . . . . . . . . . . . . . . Recycling Units 22 | . . 3 . . . . . . . 11 . . . 4 . . . . . . . 4 . . . . . . . . Monitor 6 | . . 1 . . . . . . . 3 . . . 1 . . . . . . . 1 . . . . . . . . Reject 6 | . . 1 . . . . . . . 3 . . . 1 . . . . . . . 1 . . . . . . . . Recyclers 4 | . . . . . . . . . . 2 . . . 1 . . . . . . . 1 . . . . . . . . Mask 6 | . . 1 . . . . . . . 3 . . . 1 . . . . . . . 1 . . . . . . . . Scanalyzers . | . . . . . . . . . . . . . . . . . . . . . . . . . . . . . . . Garrison Access 6 | . . . . . . . . . . 2 . . . . . 4 . . . . . . . . . . . . . . Broadcast 2 | . . . . . . . . . . 1 . . . . . 1 . . . . . . . . . . . . . . Decoy 2 | . . . . . . . . . . 1 . . . . . 1 . . . . . . . . . . . . . . Reprogram 1 | . . . . . . . . . . . . . . . . 1 . . . . . . . . . . . . . . Watchers 1 | . . . . . . . . . . . . . . . . 1 . . . . . . . . . . . . . . Data Cores Recovered 9 | . . 2 1 1 . . . . . . . . . . . 1 1 . . . . 1 . . . . 1 . 1 . Used 3 | . . 2 . 1 . . . . . . . . . . . . . . . . . . . . . . . . . . Hacking Detections 89 | . 7 11 6 7 11 . . . . 10 . . . 6 . 7 5 2 . 4 . 3 . 2 . . 2 . 3 3 Full Trace Events 4 | . . . 1 . . . . . . . . . . 1 . 1 . . . . . . . . . . . . 1 . Feedback Events . | . . . . . . . . . . . . . . . . . . . . . . . . . . . . . . . Feedback Blocked . | . . . . . . . . . . . . . . . . . . . . . . . . . . . . . . . Robot Schematics Acquired 11 | . . . . . 1 . . 4 . . . . . 1 . 2 . . . 2 . . . . . . 1 . . . Robots Built 6 | . . . . . . . . . . . . . . . . 4 . . . . . 2 . . . . . . . . Authchips 1 | . . . . . . . . . . . . . . . . . . . . . . 1 . . . . . . . . Time 269 | . . . . . . . . . . . . . . . . 100 . . . . . 169 . . . . . . . . Total Robot Build Rating 32 | . . . . . . . . . . . . . . . . 20 . . . . . 12 . . . . . . . . Part Schematics Acquired 23 | . . 1 . . 2 . . 10 . 1 . . . . . 1 . . . 2 . . . . . . 6 . . . Parts Built . | . . . . . . . . . . . . . . . . . . . . . . . . . . . . . . . Authchips . | . . . . . . . . . . . . . . . . . . . . . . . . . . . . . . . Time . | . . . . . . . . . . . . . . . . . . . . . . . . . . . . . . . Total Part Build Rating . | . . . . . . . . . . . . . . . . . . . . . . . . . . . . . . . Part Studies Acquired 17 | . . 3 . 2 . . . . . . . . . 5 . . . . . . . 2 . 2 . . 3 . . . Parts Repaired 33 | . 1 3 5 3 8 . . . . . . . . 2 . 4 3 . . . . . . . . . 3 . 1 . Time 1252 | . 26 77 148 96 212 . . . . . . . . 30 . 179 112 . . . . . . . . . 352 . 20 . Parts Recycled . | . . . . . . . . . . . . . . . . . . . . . . . . . . . . . . . Recycled Matter . | . . . . . . . . . . . . . . . . . . . . . . . . . . . . . . . Retrieved Matter . | . . . . . . . . . . . . . . . . . . . . . . . . . . . . . . . Retrieved Components . | . . . . . . . . . . . . . . . . . . . . . . . . . . . . . . . Parts Scanalyzed 4 | . . 2 . . . . . . . . . . . . . . . . . . . . . . . . 2 . . . Part Schematics Acquired 2 | . . 1 . . . . . . . . . . . . . . . . . . . . . . . . 1 . . . Parts Damaged 1 | . . . . . . . . . . . . . . . . . . . . . . . . . . . 1 . . . Bothacking | -11 -10 -9 -9 -8 -7 -7 -7 -7 -6 -6 -6 -6 -6 -5 -5 -5 -5 -5 -5 -5 -5 -4 -4 -4 -4 -3 -3 -3 -2 -2 ------------ Run | Yrd Mat Mat Sto Mat Fac Low Low Dat Pro Fac Gar Fac DSF Fac Gar Fac Ext Cet Arc Hub Gar Fac Gar Fac DSF Res Tes Gar Res Qua Used RIF Installer 4 | . . . . . . . . . . . 1 . . . 1 . . . . . . . 1 . . . . 1 . . Threat Obfuscator 1 | . . . . . . . . . . . . . . . 1 . . . . . . . . . . . . . . . Watcher Feeds 1 | . . . . . . . . . . . . . . . . . . . . . . . 1 . . . . . . . Program Shield 1 | . . . . . . . . . . . . . . . . . . . . . . . . . . . . 1 . . Robots Hacked 33 | . . . . . . . . . . 3 . . . 1 2 7 2 . 4 2 2 1 2 . . 4 1 . 2 . Non-combat 10 | . . . . . . . . . . . . . . . . 4 . . 3 1 . . . . . 1 . . 1 . Combat 23 | . . . . . . . . . . 3 . . . 1 2 3 2 . 1 1 2 1 2 . . 3 1 . 1 . Robot Hacks Applied 18 | . . . . . . . . . . . . . . . 1 5 1 . 3 1 . . 1 . . 2 2 . 2 . parse_system 9 | . . . . . . . . . . . . . . . 1 1 1 . . 1 . . 1 . . 2 1 . 1 . generate_anomaly 1 | . . . . . . . . . . . . . . . . . . . 1 . . . . . . . . . . . find_recycling 1 | . . . . . . . . . . . . . . . . . . . . . . . . . . . . . 1 . map_route 1 | . . . . . . . . . . . . . . . . 1 . . . . . . . . . . . . . . formatsys_low 4 | . . . . . . . . . . . . . . . . 1 . . 2 . . . . . . . 1 . . . formatsys_high 2 | . . . . . . . . . . . . . . . . 2 . . . . . . . . . . . . . . Relay Couplers Released 25 | . . . . . . . . . . . 4 . . . 5 . . . . . 4 1 5 . . . . 6 . . Machine Destruction 23 | . . . . . . . . . . . 4 . . . 5 . . . . . 4 1 5 . . . . 4 . . Programmers 2 | . . . . . . . . . . . . . . . . . . . . . . . . . . . . 2 . . Attached 7 | . . . . . . . . . . . . . . . 3 1 . . . . 1 . 1 . . . . 1 . . Fabnet Peak Effective % 6 | . . . . . . . . . 6 6 6 6 6 5 5 5 5 5 5 5 5 4 4 4 4 1 1 1 . . Autooverrided 17 | . . . . . . . . . . 3 . . . 1 1 3 1 . 1 1 2 1 1 . . 2 . . . . Robots Rewired 38 | . . . . . . . . . . . . . . . . . 33 . . . . . 2 . . . . 2 1 . Allies Hacked 3 | . . . . . . . . . . . . . . . . 3 . . . . . . . . . . . . . . Hacks Repelled . | . . . . . . . . . . . . . . . . . . . . . . . . . . . . . . . Allies | -11 -10 -9 -9 -8 -7 -7 -7 -7 -6 -6 -6 -6 -6 -5 -5 -5 -5 -5 -5 -5 -5 -4 -4 -4 -4 -3 -3 -3 -2 -2 -------- Run | Yrd Mat Mat Sto Mat Fac Low Low Dat Pro Fac Gar Fac DSF Fac Gar Fac Ext Cet Arc Hub Gar Fac Gar Fac DSF Res Tes Gar Res Qua Total Allies 93 | . . . 10 . . . . . . 3 2 . . 1 1 12 39 5 3 1 4 3 3 . . 2 1 2 1 . Largest Group 24 | . . . 10 9 . . . . . 1 2 . . 1 . 7 24 24 22 22 1 2 2 2 2 1 1 2 1 . Highest-Rated Group 1048 | . . . 88 80 . . . . . 32 157 . . 29 . 410 727 1048 972 927 95 108 198 198 198 30 48 198 183 . Highest-Rated Ally 183 | . . . 16 16 . . . . . 32 95 . . 29 . 142 159 143 143 96 95 54 99 99 99 30 48 99 183 . Total Orders 4 | . . . . . . . . . . . . . . . . 1 . . . . . . . . . . . . 3 . ROAM 1 | . . . . . . . . . . . . . . . . . . . . . . . . . . . . . 1 . FOLLOW 1 | . . . . . . . . . . . . . . . . 1 . . . . . . . . . . . . . . GUARD 2 | . . . . . . . . . . . . . . . . . . . . . . . . . . . . . 2 . Ally Attacks 394 | . . . 8 44 . . . . . 2 5 . . 1 . 43 78 24 9 109 9 3 7 . 14 8 5 18 7 . Total Damage 10511 | . . . 54 349 . . . . . . 170 . . . . 1758 1521 449 201 4060 316 202 241 . 192 130 . 504 364 . Kills 53 | . . . 1 3 . . . . . . . . . . . 11 7 . . 18 2 2 1 . . 3 . 3 2 . Allies Corrupted 9 | . . . . . . . . . . 1 . . . . 1 1 . . 1 3 2 . . . . . . . . . Allies Melted . | . . . . . . . . . . . . . . . . . . . . . . . . . . . . . . . Intel | -11 -10 -9 -9 -8 -7 -7 -7 -7 -6 -6 -6 -6 -6 -5 -5 -5 -5 -5 -5 -5 -5 -4 -4 -4 -4 -3 -3 -3 -2 -2 ------- Run | Yrd Mat Mat Sto Mat Fac Low Low Dat Pro Fac Gar Fac DSF Fac Gar Fac Ext Cet Arc Hub Gar Fac Gar Fac DSF Res Tes Gar Res Qua Active Infowar (turns) 10810 | . 186 21 . . . . . . . 779 532 6 145 731 882 1319 747 293 190 493 747 391 398 43 140 1058 437 353 575 344 Terrain 21 | . . 21 . . . . . . . . . . . . . . . . . . . . . . . . . . . . Cloaking 2697 | . . . . . . . . . . . . . . 633 882 1182 . . . . . . . . . . . . . . Jamming 10603 | . . . . . . . . . . 779 532 6 145 731 882 1319 747 293 190 493 747 391 398 43 140 1058 437 353 575 344 ECM 186 | . 186 . . . . . . . . . . . . . . . . . . . . . . . . . . . . . Robot Analysis Total 24 | . 4 4 3 . 3 . . . . 2 . . . 1 . . 4 . . 1 . . . . . . . . 2 . Derelict Logs Recovered 5 | . . . . . . 1 1 . 3 . . . . . . . . . . . . . . . . . . . . . Drone Launches . | . . . . . . . . . . . . . . . . . . . . . . . . . . . . . . . Drone Recoveries . | . . . . . . . . . . . . . . . . . . . . . . . . . . . . . . . Exploration | -11 -10 -9 -9 -8 -7 -7 -7 -7 -6 -6 -6 -6 -6 -5 -5 -5 -5 -5 -5 -5 -5 -4 -4 -4 -4 -3 -3 -3 -2 -2 ------------- Run | Yrd Mat Mat Sto Mat Fac Low Low Dat Pro Fac Gar Fac DSF Fac Gar Fac Ext Cet Arc Hub Gar Fac Gar Fac DSF Res Tes Gar Res Qua Turns Passed 16191 | 47 749 1087 878 964 1060 351 205 28 148 814 532 6 145 731 882 1319 747 293 190 493 747 391 398 43 162 1058 437 367 575 344 Spaces Moved 24172 | 37 504 1287 810 1213 1300 805 489 90 498 1491 827 21 193 1290 1046 1847 800 229 241 896 1018 487 528 126 181 2945 568 490 1112 803 Core 9 | 9 . . . . . . . . . . . . . . . . . . . . . . . . . . . . . . Treads . | . . . . . . . . . . . . . . . . . . . . . . . . . . . . . . . Legs . | . . . . . . . . . . . . . . . . . . . . . . . . . . . . . . . Wheels 834 | 28 504 302 . . . . . . . . . . . . . . . . . . . . . . . . . . . . Hover . | . . . . . . . . . . . . . . . . . . . . . . . . . . . . . . . Flight 23329 | . . 985 810 1213 1300 805 489 90 498 1491 827 21 193 1290 1046 1847 800 229 241 896 1018 487 528 126 181 2945 568 490 1112 803 Fastest Speed 15 | 50 100 34 31 31 31 27 27 27 27 27 28 28 28 28 28 24 24 24 24 24 17 20 23 23 23 18 18 18 15 15 Average Speed 28 | 87 100 47 33 31 31 27 27 27 27 27 28 28 28 28 28 27 24 24 24 24 31 22 23 23 23 21 18 18 17 15 Slowest Speed 110 | 100 100 110 107 104 31 31 27 27 27 106 102 28 28 28 108 31 103 24 24 24 96 24 23 23 23 24 18 18 90 15 Overloaded Moves 198 | . . . . . . . . . . . . . . . . . 150 . . . 48 . . . . . . . . . Propulsion Burnouts . | . . . . . . . . . . . . . . . . . . . . . . . . . . . . . . . Robots Hopped 143 | . . 13 3 20 5 1 . . . 4 1 . 1 13 2 34 11 . . 9 . 2 . . . 19 . . 3 2 Potential Cave-ins . | . . . . . . . . . . . . . . . . . . . . . . . . . . . . . . . Cave-ins Triggered . | . . . . . . . . . . . . . . . . . . . . . . . . . . . . . . . Teleports 2 | . . . . . . . . . . . . . . . . . . . . . . . . . . . . . . 2 Exploration Rate (%) 61 | 3 87 94 92 92 30 80 64 75 71 37 65 1 94 34 92 41 86 81 97 71 83 17 61 5 94 79 51 54 24 43 Regions Visited 30 Branch Regions 11 Pre-discovered Areas 7 | . . . . 1 1 . . 1 . 4 . . . . . . . . . . . . . . . . . . . . Known Exits Taken 21 | . . 1 1 1 1 1 1 1 1 1 . 1 . 1 . 1 1 1 1 1 . 1 . 1 . 1 1 . 1 . Unknown Exits Taken 2 | 1 1 . . . . . . . . . . . . . . . . . . . . . . . . . . . . . Scrap Searched 9 | . . . . . . 3 3 . 3 . . . . . . . . . . . . . . . . . . . . . Spaces Dug 17 | . . . . . . 2 . . . . . . . . . . . . . . . . . . . . . . . 15 Terrain Destroyed 835 | . 7 17 13 107 39 15 16 . . 23 160 . . 9 3 31 . 14 1 194 1 49 2 . . 5 8 4 16 101 Melee 2 | . . . . . . 2 . . . . . . . . . . . . . . . . . . . . . . . . Projectile 82 | . . 17 4 40 9 7 . . . 5 . . . . . . . . . . . . . . . . . . . . AOE 749 | . 7 . 9 67 30 6 16 . . 18 160 . . 9 3 31 . 14 1 194 1 49 . . . 5 8 4 16 101 Terrain Rammed . | . . . . . . . . . . . . . . . . . . . . . . . . . . . . . . . Walls Destroyed . | . . . . . . . . . . . . . . . . . . . . . . . . . . . . . . . Machines Disabled . | . . . . . . . . . . . . . . . . . . . . . . . . . . . . . . . Actions | -11 -10 -9 -9 -8 -7 -7 -7 -7 -6 -6 -6 -6 -6 -5 -5 -5 -5 -5 -5 -5 -5 -4 -4 -4 -4 -3 -3 -3 -2 -2 --------- Run | Yrd Mat Mat Sto Mat Fac Low Low Dat Pro Fac Gar Fac DSF Fac Gar Fac Ext Cet Arc Hub Gar Fac Gar Fac DSF Res Tes Gar Res Qua Total 30625 | 44 635 1566 1269 1556 1746 882 533 92 503 1723 1034 20 250 1496 1423 2478 1240 444 345 1061 1306 733 724 137 262 3229 857 675 1435 927 Wait 3362 | . 50 141 308 177 288 16 26 3 . 81 78 . . 81 32 530 242 196 77 75 99 201 39 10 25 105 224 55 177 26 Move 23856 | 36 503 1261 803 1174 1289 802 488 89 497 1482 822 20 190 1264 1039 1782 779 228 240 878 1014 482 524 125 180 2906 567 488 1105 799 Hop 132 | . . 12 3 18 5 1 . . . 4 1 . 1 12 2 30 9 . . 8 . 2 . . . 19 . . 3 2 Pick Up 54 | . 3 4 1 7 4 1 . . 1 3 4 . 2 2 . 1 . . . . 2 2 . . 1 1 7 1 3 4 Fast Attach 144 | 6 3 16 8 7 9 1 1 . . 8 . . 2 8 5 8 4 1 1 1 9 1 1 . 3 15 4 1 7 14 Attach 21 | . . 1 . 1 1 . . . . 1 . . . . . 2 . . . . . 2 . . . . 1 . 8 4 Detach 28 | . 1 6 . 1 1 . . . . 1 . . 1 . 2 2 . . . . 1 . 1 . 1 . . . 6 4 Swap 185 | . 8 1 3 9 8 9 1 . . 18 12 . 1 5 3 17 21 1 4 4 7 3 5 1 . 22 4 3 10 5 Drop 163 | . 4 13 4 13 6 4 1 . 1 11 4 . 2 8 3 9 2 2 . 3 6 2 2 . 3 27 7 2 13 11 Fire 1619 | 2 57 93 72 113 103 22 14 . 4 78 43 . 16 68 96 71 115 14 18 70 94 25 84 1 34 101 35 67 62 47 Melee 2 | . . . . . . 2 . . . . . . . . . . . . . . . . . . . . . . . . Ram . | . . . . . . . . . . . . . . . . . . . . . . . . . . . . . . . Kick . | . . . . . . . . . . . . . . . . . . . . . . . . . . . . . . . Crush . | . . . . . . . . . . . . . . . . . . . . . . . . . . . . . . . Escape Stasis 472 | . . . 29 . . . . . . . 32 . 30 26 197 . 30 . . . 31 . 41 . . 11 . 45 . . Rewire 4 | . . . . . . . . . . . . . . . . 3 . . 1 . . . . . . . . . . . Trap . | . . . . . . . . . . . . . . . . . . . . . . . . . . . . . . . Miscellaneous 583 | . 6 18 38 36 32 24 2 . . 36 38 . 5 22 44 23 38 2 4 22 43 13 27 . 15 22 8 13 41 11 Route ------- -11/Scrapyard -10/Materials (discovered 4 exits: *Mat x3 / Min) -9/Materials (discovered 6 exits: *Mat x3 / *Min / *Sto x2) -9/Storage (discovered 2 exits: *Mat / Rec) -8/Materials (discovered 3 exits: *Fac x3) -7/Factory (discovered 6 exits: *Fac x4 / *Low x2) -7/Lower Caves (discovered 2 exits: *Low / *Zio) -7/Lower Caves (discovered 2 exits: *Fac / *Dat) -7/Data Miner -6/Proximity Caves -6/Factory (discovered 7 exits: *Fac x4 / *Low x2 / Gar) -6/Garrison (discovered 3 exits: *Fac x3) -6/Factory -6/DSF -5/Factory (discovered 5 exits: *Fac / Upp x2 / Ext / Gar) -5/Garrison (discovered 3 exits: *Fac x3) -5/Factory (discovered 3 exits: *Fac / *Upp / *Ext) -5/Extension (discovered 3 exits: *Fac x2 / *Cet) -5/Cetus (discovered 2 exits: *Fac / *Arc) -5/Archives (discovered 3 exits: *Fac / *Hub x2) -5/Hub_04(d) (discovered 3 exits: *Fac x2 / Gar) -5/Garrison (discovered 3 exits: *Fac x3) -4/Factory -4/Garrison (discovered 3 exits: *Fac x3) -4/Factory -4/DSF -3/Research (discovered 4 exits: *Res x3 / *Tes) -3/Testing (discovered 2 exits: Res / Gar) -3/Garrison (discovered 3 exits: *Res x3) -2/Research (discovered 4 exits: *Acc x2 / *Qua x2) -2/Quarantine (discovered 1 exit: *Acc) History --------- Turn | Location | Event 1 | -11/Scrapyard | Upgraded with Propulsion slot (x1) 1 | -11/Scrapyard | Upgraded with Utility slot (x1) 1 | -11/Scrapyard | Upgraded with Weapon slot (x1) 4 | -11/Scrapyard | Discovered new exit (range 16) 48 | -11/Scrapyard | Entered Materials 257 | -10/Materials | Discovered new exit (range 14) 334 | -10/Materials | Build established: Mutant 437 | -10/Materials | Discovered new exit (range 14) 601 | -10/Materials | Repaired Com. Wheel 679 | -10/Materials | Reached level 2 683 | -10/Materials | Upgraded with Utility slot (x1) 719 | -10/Materials | Identified exit to Mines 763 | -10/Materials | Discovered new exit (range 16) 797 | -10/Materials | Entered another Materials area 797 | -9/Materials | Discovered new exit (range 11) 799 | -9/Materials | Reached level 3 799 | -9/Materials | Upgraded with Utility slot (x1) 979 | -9/Materials | Discovered new exit (range 15) 1080 | -9/Materials | Discovered new exit (range 5) 1162 | -9/Materials | Core integrity fell below 50% 1189 | -9/Materials | Reached level 4 1255 | -9/Materials | Repaired Lgt. Nuclear Core 1281 | -9/Materials | Discovered new exit (range 13) 1380 | -9/Materials | Reached level 5 1383 | -9/Materials | Upgraded with Propulsion slot (x1) 1401 | -9/Materials | Destroyed 7 combat bots 1463 | -9/Materials | Discovered new exit (range 15) 1479 | -9/Materials | Build established: Hacker-Mutant 1514 | -9/Materials | Repaired Imp. Light Cannon+ 1542 | -9/Materials | Repaired Tractor Beam 1634 | -9/Materials | Identified exit to Materials 1785 | -9/Materials | Learned 4 Recycling zone layouts 1847 | -9/Materials | Identified exit to Mines 1847 | -9/Materials | Identified exit to Storage 1884 | -9/Materials | Entered Storage 1886 | -9/Storage | Reached level 6 1959 | -9/Storage | Repaired Lgt. Armor Plating 2169 | -9/Storage | Reached level 7 2225 | -9/Storage | Identified exit to Recycling 2225 | -9/Storage | Upgraded with Propulsion slot (x1) 2426 | -9/Storage | Repaired Flight Unit+ 2459 | -9/Storage | Repaired Hrd. Light Armor Plating 2493 | -9/Storage | Repaired Hvy. EM Pulse Gun 2526 | -9/Storage | Repaired Imp. Light Cannon+ 2548 | -9/Storage | Reached level 8 2614 | -9/Storage | Central database locked down 2618 | -9/Storage | Assisted by bots powering up and referring to "LRC-V3" 2762 | -9/Storage | Entered Materials 2762 | -8/Materials | Accompanied by 9 allies 2764 | -8/Materials | Reached level 9 2764 | -8/Materials | Upgraded with Utility slot (x1) 2910 | -8/Materials | Reached level 10 2979 | -8/Materials | Lost 8 allies 3015 | -8/Materials | Build established: Hacker-Sprinter 3032 | -8/Materials | Repaired Lgt. Armor Plating 3167 | -8/Materials | Reached level 11 3172 | -8/Materials | Central database locked down 3280 | -8/Materials | Discovered new exit (range 17) 3281 | -8/Materials | Identified exit to Factory 3336 | -8/Materials | Repaired Hrd. Light Armor Plating 3376 | -8/Materials | Repaired Lgt. Nuclear Core+ 3584 | -8/Materials | Reached level 12 3628 | -8/Materials | Destroyed 11 combat bots 3709 | -8/Materials | Learned 2 Lower Caves zone layouts 3726 | -8/Materials | Entered Factory 3728 | -7/Factory | Reached level 13 3728 | -7/Factory | Upgraded with Utility slot (x1) 3737 | -7/Factory | Discovered new exit (range 8) 3810 | -7/Factory | Repaired Hvy. EM Pulse Gun+ 3849 | -7/Factory | Repaired Lgt. Nuclear Core+ 3889 | -7/Factory | Repaired Reactive Plating 3899 | -7/Factory | Identified exit to Lower Caves 3963 | -7/Factory | Central database locked down 4076 | -7/Factory | Unchained authorized (CL-0N3) 4146 | -7/Factory | Reached level 14 4152 | -7/Factory | Upgraded with Propulsion slot (x1) 4225 | -7/Factory | Identified exit to Factory 4238 | -7/Factory | U-05 Engineer reconstituted as D-63 Destroyer 4247 | -7/Factory | D-63 Destroyer reconstituted as CL-0N3 4378 | -7/Factory | Repaired Reactive Plating 4456 | -7/Factory | Build established: Wizard-Sprinter 4458 | -7/Factory | P-60 Hacker reconstituted as Infiltrator 4462 | -7/Factory | Learned Extension emergency access door positions 4482 | -7/Factory | Infiltrator reconstituted as CL-0N3 4515 | -7/Factory | Garrison activated, responded to threat 4588 | -7/Factory | Learned Hub_04(d) non-interactive machine intel 4629 | -7/Factory | Repaired Imp. Flight Unit 4637 | -7/Factory | Loaded intel: 24 terminal locations 4649 | -7/Factory | Repaired Shock Rifle 4673 | -7/Factory | Repaired Lightning Gun 4675 | -7/Factory | Learned Hub_04(d) trap positions 4693 | -7/Factory | Repaired Imp. Light Armor Plating 4708 | -7/Factory | Reached level 15 4727 | -7/Factory | Learned location of Lower Caves (-6) 4758 | -7/Factory | Learned Hub_04(d) garrison access intel 4786 | -7/Factory | Entered Lower Caves 4787 | -7/Lower Caves | Encountered a Warlord checkpoint 4787 | -7/Lower Caves | Spotted B-75 Beast 4853 | -7/Lower Caves | Upgraded with Power slot (x1) 4958 | -7/Lower Caves | Discovered new exit (range 16) 4964 | -7/Lower Caves | Identified exit to Lower Caves 5075 | -7/Lower Caves | A Derelict revealed a hidden shortcut to a safe place 5078 | -7/Lower Caves | Identified exit to Zion 5137 | -7/Lower Caves | Entered another Lower Caves area 5150 | -7/Lower Caves | Reached level 16 5224 | -7/Lower Caves | Discovered exit to Factory (range 8) 5273 | -7/Lower Caves | Learned Factory emergency access door positions 5284 | -7/Lower Caves | Encountered a Warlord checkpoint 5299 | -7/Lower Caves | Discovered new exit (range 3) 5334 | -7/Lower Caves | Identified exit to Data Miner 5342 | -7/Lower Caves | Entered Data Miner 5342 | -7/Data Miner | Discovered new exit (range 6) 5344 | -7/Data Miner | Identified exit to Proximity Caves 5347 | -7/Data Miner | Met Data Miner 5355 | -7/Data Miner | Learned location of Section 7 (-2) 5355 | -7/Data Miner | Acquired the access code to Warlord's prototype stash 5361 | -7/Data Miner | Received God Mode back door access code from Data Miner 5370 | -7/Data Miner | Entered Proximity Caves 5378 | -6/Proximity Caves | Learned Factory stockpile data 5410 | -6/Proximity Caves | Learned Factory stockpile data 5438 | -6/Proximity Caves | Learned Factory stockpile data 5511 | -6/Proximity Caves | Reached level 17 5515 | -6/Proximity Caves | Discovered exit to Factory (range 13) 5518 | -6/Proximity Caves | Entered Factory 5519 | -6/Factory | Identified exit to Lower Caves 5552 | -6/Factory | Central database locked down 5704 | -6/Factory | Reached level 18 5710 | -6/Factory | Upgraded with Utility slot (x1) 5781 | -6/Factory | Core integrity fell below 50% 5971 | -6/Factory | Identified exit to Factory 6059 | -6/Factory | Learned location of Zion (-6) 6136 | -6/Factory | Learned location of Warlord (-5) 6218 | -6/Factory | Assembled infested ambush trap array 6261 | -6/Factory | Learned location of Extension (-5) 6332 | -6/Factory | Identified exit to Garrison 6332 | -6/Factory | Entered Garrison 6346 | -6/Garrison | Triggered checkpoint 6365 | -6/Garrison | Reached level 19 6403 | -6/Garrison | Found embedded Infiltrators 6446 | -6/Garrison | Phase Generator disabled 6459 | -6/Garrison | Spotted B-75 Beast 6467 | -6/Garrison | Garrison Relay disabled 6468 | -6/Garrison | Triggered checkpoint 6490 | -6/Garrison | Discovered new exit (range 80) 6490 | -6/Garrison | Discovered new exit (range 56) 6490 | -6/Garrison | Discovered new exit (range 32) 6493 | -6/Garrison | Upgraded with Weapon slot (x1) 6528 | -6/Garrison | Triggered checkpoint 6572 | -6/Garrison | Destroyed B-75 Beast 6596 | -6/Garrison | Triggered checkpoint 6720 | -6/Garrison | Triggered checkpoint 6763 | -6/Garrison | Garrison Relay disabled 6814 | -6/Garrison | Installed Relay Interface Framework 6864 | -6/Garrison | Identified exit to Factory 6864 | -6/Garrison | Entered Factory 6870 | -6/Factory | Identified exit to DSF 6870 | -6/Factory | Entered DSF 6896 | -6/DSF | Additional patrols routed to DSF 6932 | -6/DSF | Discovered exit to Factory (range 15) 6975 | -6/DSF | Reached level 20 6978 | -6/DSF | Upgraded with Utility slot (x1) 7008 | -6/DSF | Destroyed 7 combat bots 7010 | -6/DSF | Sterilization system engaged 7015 | -6/DSF | Entered Factory 7016 | -5/Factory | Identified exit to Upper Caves 7016 | -5/Factory | Identified exit to Extension 7142 | -5/Factory | Repaired Hpw. Shock Rifle 7180 | -5/Factory | Discovered new exit (range 15) 7246 | -5/Factory | Reached level 21 7286 | -5/Factory | Repaired Lightning Gun+ 7515 | -5/Factory | Local machine network offline 7745 | -5/Factory | Identified exit to Garrison 7746 | -5/Factory | Entered Garrison 7748 | -5/Garrison | Reached level 22 7760 | -5/Garrison | Triggered checkpoint 7823 | -5/Garrison | Garrison Relay disabled 7952 | -5/Garrison | Triggered checkpoint 7961 | -5/Garrison | Triggered checkpoint 8100 | -5/Garrison | Discovered new exit (range 11) 8183 | -5/Garrison | Triggered checkpoint 8335 | -5/Garrison | Garrison Relay disabled 8467 | -5/Garrison | Expanded RIF knowledge: Threat Obfuscation 8492 | -5/Garrison | Discovered new exit (range 11) 8526 | -5/Garrison | Triggered checkpoint 8590 | -5/Garrison | Garrison Relay disabled 8606 | -5/Garrison | Triggered checkpoint 8621 | -5/Garrison | Discovered new exit (range 68) 8621 | -5/Garrison | Discovered new exit (range 14) 8621 | -5/Garrison | Discovered new exit (range 80) 8628 | -5/Garrison | Identified exit to Factory 8628 | -5/Garrison | Entered Factory 8699 | -5/Factory | Repaired Broken Lgt. Fission Core+ 8774 | -5/Factory | Reached level 23 8833 | -5/Factory | Repaired Lgt. Fission Core+ 8885 | -5/Factory | Repaired Hpw. Shock Rifle+ 8930 | -5/Factory | Repaired Imp. Medium Armor Plating 8976 | -5/Factory | Discovered exit to Upper Caves (range 7) 9003 | -5/Factory | Discovered new exit (range 14) 9011 | -5/Factory | Identified exit to Factory 9344 | -5/Factory | Cargo convoy interrupted 9636 | -5/Factory | Fabricated P-60 Hacker (x2) 9657 | -5/Factory | Incoming investigation squad redirected 9692 | -5/Factory | Fabricated P-70 Sage (x2) 9698 | -5/Factory | Discovered exit to Extension (range 9) 9753 | -5/Factory | Local machine network offline 9760 | -5/Factory | Sage 6b assimilated hostile C-35 Carver 9787 | -5/Factory | Hacker 6b assimilated hostile G-50 Soldier 9788 | -5/Factory | Spotted B-75 Beast 9813 | -5/Factory | Destroyed B-75 Beast 9828 | -5/Factory | First assault squad dispatched 9852 | -5/Factory | Lost 6 allies 9947 | -5/Factory | Entered Extension 10098 | -5/Extension | Lost 7 allies 10199 | -5/Extension | Rescued a captive Derelict 10201 | -5/Extension | Rescued a captive Derelict 10205 | -5/Extension | Spotted B-75 Beast 10213 | -5/Extension | Rewired B-75 Beast 10216 | -5/Extension | Spotted B-75 Beast 10248 | -5/Extension | Destroyed B-75 Beast 10274 | -5/Extension | Discovered exit to Factory (range 3) 10281 | -5/Extension | Lost 5 allies 10284 | -5/Extension | Identified exit to Cetus 10333 | -5/Extension | Rescued A7 10367 | -5/Extension | Reached level 24 10427 | -5/Extension | Repaired Broken Cld. Nuclear Pulse Thruster 10456 | -5/Extension | Repaired Tesla Rifle 10501 | -5/Extension | Repaired Tesla Rifle 10511 | -5/Extension | Rescued a captive Derelict 10512 | -5/Extension | Rescued a captive Derelict 10533 | -5/Extension | Local machine network offline 10694 | -5/Extension | Entered Cetus 10694 | -5/Cetus | Accompanied by 22 allies (A7) 10697 | -5/Cetus | Spotted Cetus Guard 10698 | -5/Cetus | Spotted Cetus Guard 10699 | -5/Cetus | Acquired a Cetus Manufacturing Module code from A7 10701 | -5/Cetus | Destroyed Cetus Guard 10703 | -5/Cetus | Spotted Cetus Guard 10703 | -5/Cetus | Spotted Cetus Guard 10710 | -5/Cetus | Destroyed Cetus Guard 10712 | -5/Cetus | Destroyed Cetus Guard 10713 | -5/Cetus | Destroyed Cetus Guard 10735 | -5/Cetus | Started Cetus Manufacturing Module 10760 | -5/Cetus | Manufactured an Enhanced Grunt 10781 | -5/Cetus | Discovered new exit (range 17) 10785 | -5/Cetus | Manufactured an Enhanced Grunt 10785 | -5/Cetus | Identified exit to Archives 10810 | -5/Cetus | Manufactured an Enhanced Grunt 10819 | -5/Cetus | Spotted Cetus Guard 10819 | -5/Cetus | Spotted Cetus Guard 10822 | -5/Cetus | Spotted Cetus Guard 10822 | -5/Cetus | Spotted Cetus Guard 10825 | -5/Cetus | Destroyed Cetus Guard 10833 | -5/Cetus | Destroyed Cetus Guard 10835 | -5/Cetus | Manufactured an Enhanced Grunt 10837 | -5/Cetus | Destroyed Cetus Guard 10839 | -5/Cetus | Destroyed Cetus Guard 10841 | -5/Cetus | Discovered exit to Factory (range 17) 10844 | -5/Cetus | Met Revision 17 10855 | -5/Cetus | Build established: Commander-Sprinter 10860 | -5/Cetus | Manufactured an Enhanced Grunt 10987 | -5/Cetus | Entered Archives 10987 | -5/Archives | Accompanied by 21 allies (A7) 11015 | -5/Archives | Unable to access archive contents 11018 | -5/Archives | Discovered new exit (range 17) 11024 | -5/Archives | Unable to access archive contents 11025 | -5/Archives | Discovered new exit (range 17) 11050 | -5/Archives | Discovered exit to Factory (range 17) 11051 | -5/Archives | Unable to access archive contents 11081 | -5/Archives | Identified exit to Hub_04(d) 11177 | -5/Archives | Entered Hub_04(d) 11177 | -5/Hub_04(d) | Accompanied by 21 allies 11178 | -5/Hub_04(d) | Loaded intel: 19 trap records 11179 | -5/Hub_04(d) | Loaded intel: 85 non-interactive machine locations 11180 | -5/Hub_04(d) | Loaded intel: 2 garrison access locations 11189 | -5/Hub_04(d) | Garrison activated, responded to threat 11286 | -5/Hub_04(d) | Garrison activated, responded to threat 11311 | -5/Hub_04(d) | Discovered exit to Factory (range 11) 11314 | -5/Hub_04(d) | Lost 4 allies 11361 | -5/Hub_04(d) | Network Hub disabled 11362 | -5/Hub_04(d) | System corruption reached 10% 11377 | -5/Hub_04(d) | Spotted Lightning 11377 | -5/Hub_04(d) | Spotted Lightning 11377 | -5/Hub_04(d) | Spotted Lightning 11399 | -5/Hub_04(d) | Spotted Lightning 11415 | -5/Hub_04(d) | Spotted Lightning 11415 | -5/Hub_04(d) | Spotted Lightning 11415 | -5/Hub_04(d) | Spotted Lightning 11435 | -5/Hub_04(d) | Allies destroyed Lightning 11447 | -5/Hub_04(d) | Network Hub disabled 11459 | -5/Hub_04(d) | Reached level 25 11462 | -5/Hub_04(d) | Discovered exit to Factory (range 10) 11480 | -5/Hub_04(d) | Lost 14 allies 11557 | -5/Hub_04(d) | Network Hub disabled 11568 | -5/Hub_04(d) | Build established: Wizard-Sprinter 11578 | -5/Hub_04(d) | Incoming assault squad redirected 11579 | -5/Hub_04(d) | Incoming assault squad redirected 11606 | -5/Hub_04(d) | Incoming investigation squad redirected 11670 | -5/Hub_04(d) | Identified exit to Garrison 11670 | -5/Hub_04(d) | Entered Garrison 11678 | -5/Garrison | Spotted B-75 Beast 11688 | -5/Garrison | Garrison Relay disabled 11700 | -5/Garrison | Triggered checkpoint 11823 | -5/Garrison | Destroyed B-75 Beast 11841 | -5/Garrison | Triggered checkpoint 11870 | -5/Garrison | Destroyed 10 combat bots 11890 | -5/Garrison | Triggered checkpoint 11914 | -5/Garrison | Discovered exit to Factory (range 10) 11928 | -5/Garrison | Rescued a captive Derelict 11976 | -5/Garrison | Triggered checkpoint 12038 | -5/Garrison | Discovered exit to Factory (range 7) 12076 | -5/Garrison | Triggered checkpoint 12131 | -5/Garrison | Lost 3 parts (1p2u) 12173 | -5/Garrison | Learned Factory security intel 12179 | -5/Garrison | Discovered exit to Factory (range 11) 12188 | -5/Garrison | Triggered checkpoint 12293 | -5/Garrison | Garrison Relay disabled 12336 | -5/Garrison | Triggered checkpoint 12388 | -5/Garrison | Found embedded Infiltrators 12417 | -5/Garrison | Entered Factory 12433 | -4/Factory | Reached level 26 12436 | -4/Factory | Upgraded with Propulsion slot (x1) 12440 | -4/Factory | Central database locked down 12621 | -4/Factory | Fabricated P-70 Sage (x2) 12696 | -4/Factory | Local machine network offline 12808 | -4/Factory | Identified exit to Garrison 12808 | -4/Factory | Entered Garrison 12883 | -4/Garrison | Garrison Relay disabled 12894 | -4/Garrison | Triggered checkpoint 12954 | -4/Garrison | Destroyed 7 combat bots 12992 | -4/Garrison | Discovered new exit (range 15) 13047 | -4/Garrison | Expanded RIF knowledge: Watcher Feeds 13050 | -4/Garrison | Garrison Relay disabled 13054 | -4/Garrison | Triggered checkpoint 13128 | -4/Garrison | Triggered checkpoint 13162 | -4/Garrison | Rewired Striker 13163 | -4/Garrison | Rewired Striker 13170 | -4/Garrison | Discovered new exit (range 68) 13170 | -4/Garrison | Discovered new exit (range 43) 13170 | -4/Garrison | Discovered new exit (range 14) 13179 | -4/Garrison | Garrison Relay disabled 13182 | -4/Garrison | Triggered checkpoint 13200 | -4/Garrison | Spotted B-75 Beast 13204 | -4/Garrison | Identified exit to Factory 13206 | -4/Garrison | Entered Factory 13206 | -4/Factory | Accompanied by 2 allies 13242 | -4/Factory | Identified exit to DSF 13249 | -4/Factory | Entered DSF 13249 | -4/DSF | Accompanied by 2 allies 13271 | -4/DSF | Additional patrols routed to DSF 13367 | -4/DSF | Discovered new exit (range 15) 13370 | -4/DSF | Identified exit to Research 13377 | -4/DSF | Reached level 27 13411 | -4/DSF | Entered Research 13414 | -3/Research | Local machine network offline 13611 | -3/Research | Revision forces began assault on 0b10 13688 | -3/Research | Build established: Wizard-Scout 13752 | -3/Research | Reached level 28 13753 | -3/Research | Upgraded with Power slot (x1) 13776 | -3/Research | Met up with Revision 17++ 13925 | -3/Research | Discovered new exit (range 5) 14068 | -3/Research | Destroyed 7 combat bots 14111 | -3/Research | Research terminal network offline 14112 | -3/Research | Identified exit to Research 14251 | -3/Research | Discovered exit to Research (range 15) 14299 | -3/Research | Discovered exit to Research (range 13) 14392 | -3/Research | Spotted Striker 14437 | -3/Research | Discovered new exit (range 6) 14438 | -3/Research | Identified exit to Testing 14447 | -3/Research | Spotted B-86 Titan 14457 | -3/Research | Destroyed B-86 Titan 14469 | -3/Research | Entered Testing 14471 | -3/Testing | Reached level 29 14482 | -3/Testing | Spotted Superbehemoth 14500 | -3/Testing | Found Prototype Processor 14502 | -3/Testing | Identified Spectral Analyzer 14510 | -3/Testing | Found Prototype Device 14514 | -3/Testing | Identified Exp. Thermal Defense Suite 14643 | -3/Testing | Unchained authorized (CL-0N3) 14665 | -3/Testing | Repaired Gamma Rifle+ 14666 | -3/Testing | Repaired Centrium Light Armor Plating 14734 | -3/Testing | Repaired Gamma Rifle+ 14833 | -3/Testing | Spotted Striker 14833 | -3/Testing | Spotted Striker 14843 | -3/Testing | Destroyed Striker 14852 | -3/Testing | Destroyed Striker 14855 | -3/Testing | Spotted Alpha 7 14906 | -3/Testing | Identified exit to Garrison 14906 | -3/Testing | Entered Garrison 14916 | -3/Garrison | Triggered checkpoint 14931 | -3/Garrison | Garrison Relay disabled 14934 | -3/Garrison | Discovered exit to Research (range 68) 14934 | -3/Garrison | Discovered exit to Research (range 62) 14934 | -3/Garrison | Discovered exit to Research (range 46) 14934 | -3/Garrison | Learned Research security intel 14960 | -3/Garrison | Rewired Striker 14961 | -3/Garrison | Rewired Striker 14974 | -3/Garrison | Spotted B-86 Titan 15010 | -3/Garrison | Triggered checkpoint 15068 | -3/Garrison | Destroyed B-86 Titan 15082 | -3/Garrison | Triggered checkpoint 15104 | -3/Garrison | Core integrity fell below 50% 15179 | -3/Garrison | Destroyed 14 combat bots 15207 | -3/Garrison | Expanded RIF knowledge: Program Shield 15236 | -3/Garrison | Garrison Relay disabled 15273 | -3/Garrison | Entered Research 15275 | -2/Research | Reached level 30 15290 | -2/Research | Discovered new exit (range 3) 15290 | -2/Research | Identified exit to Access 15530 | -2/Research | Discovered exit to Access (range 13) 15594 | -2/Research | Core integrity fell below 50% 15597 | -2/Research | Reached level 31 15627 | -2/Research | Identified exit to Quarantine 15844 | -2/Research | Repaired Adv. Reaction Control System 15848 | -2/Research | Entered Quarantine 15888 | -2/Quarantine | Found Prototype Device 15907 | -2/Quarantine | Found Alien Artifact 15915 | -2/Quarantine | Met incapacitated Sigix Warrior 15915 | -2/Quarantine | Lockdown squad dispatched 15916 | -2/Quarantine | Acquired the access code to the Sigix quarantine chamber 15916 | -2/Quarantine | Unlocked Sigix quarantine chamber 15930 | -2/Quarantine | Identified Transdimensional Reconstructor 15930 | -2/Quarantine | Warped through subspace 15962 | -2/Quarantine | Identified Exp. Transmission Jammer 16018 | -2/Quarantine | Found Alien Artifact 16018 | -2/Quarantine | Identified Dimensional Node Initializer 16018 | -2/Quarantine | Initialized slip node 16022 | -2/Quarantine | Found Alien Artifact 16022 | -2/Quarantine | Identified Hpw. Transdimensional Reconstructor 16022 | -2/Quarantine | Warped through subspace to slip node 16044 | -2/Quarantine | Found Alien Reactor 16044 | -2/Quarantine | Identified Matter Drive 16050 | -2/Quarantine | Spotted Lightning 16050 | -2/Quarantine | Spotted Lightning 16074 | -2/Quarantine | Spotted Lightning 16087 | -2/Quarantine | System corruption reached 10% 16148 | -2/Quarantine | Core integrity fell below 20% 16152 | -2/Quarantine | Reached level 32 16192 | -2/Quarantine | Destroyed by Lightning with EMDS Last Messages --------------- 16176_ HV Slug penetrates Lightning. 16176_ HV Slug penetrates Door. 16178_ Penetrated by EMDS Slug. 16178_ Terminal disabled. 16179_ EMDS Slug penetrates Wall. 16179_ Aeration Cycler disabled. 16180_ Penetrated by EMDS Slug. 16180_ HV Slug penetrates Lightning. 16180_ HV Slug penetrates Suspension Chamber. 16181_ Penetrated by EMDS Slug. 16182_ The unstable cave ceiling collapses. 16182_ Penetrated by EMDS Slug. 16184_ System corrupted: Hyp. Railgun+ jammed. 16187_ The unstable cave ceiling collapses. 16187_ System corrupted: Hyp. Railgun+ jammed. 16187_ Penetrated by EMDS Slug. 16188_ The unstable cave ceiling collapses. 16190_ Penetrated by EMDS Slug. 16192_ The unstable cave ceiling collapses. 16192_ Penetrated by EMDS Slug. Map ----- +----------------------------------------------------+ | " #??????????????????????????????????? | | # " " #??????????????????????????????????? | | " """ #??????????????????????????????????? | | """"" #??????????????????????????????????? | | "" #??????????????????????????????????? | | # "" #??????????????????????????????????? | | # #?????????????????????????????#????? | | ##########?????????????????????????????# ???? | | #??????????????????????????????????????# ???? | | #??????????????????????????????????????# ??? | | ######??????????????????????????????????????+ ?? | | #############???????????????????????????????# ?? | | #???????????????????????????????# ? | | [! """"" #???????????????????????????????# # | | = """"" #???????????????????????????????# | | ""T"" """"" #??????##########???????????????# | | """"" #??????# #???????????????# | | *[%!= #??????# """ "#???????????????# | | #############??????# """% "#?????????############ | | #############??????# """% "#?????????# | | #??????# [*!T########### | | #??????# """ =""# *# | | #??????# """[%""# # | | #??????# """ =" # + """ """ | | #/###### #??????# ===[ # """ """ # " " " " | | ???????# #??????######@### """ """ # """ """ | | ???????# #????????# # "" """ # | | ???????# ########## # w # "" "" """ | | ???????# [=%[ h # "" """ # ""T"" " " | | """"" ##w =%[%* h[ !! ; "" # """ """ | | + ######## # """ """ # | | #########+######???# ############ | | # ! #??# """ """ #??????????? | | # """ #### """ """ #??????????? | | " # "T" ! ##""# """ """ #??????????? | | " # " " ##T" h #??????????? | | " # """ + # #??????????? | | # ! " " #### #########??????????? | | " # """ #?# #?????????????????? | | " # #?# """ #?????????????????? | | " # """ #?# ""/"" #?????????????????? | | # !] " " #?# """"" #?????????????????? | | # ] """ #?# #?????????????????? | | # #?# #?????????????????? | | #?##############?###############?????????????????? | | | | | | | | | | | +----------------------------------------------------+ Best States ------------- Heat Dissipation 133 Energy Generation 76 Energy Capacity 770 Matter Stores 350 Matter Capacity 350 Sight Range 18 Robot Scan Range 28 Terrain Scan Range 16 Terrain Scan Density 210 ECM Strength 1 Jamming Range 22 Cloak Strength 2 Armor Coverage 450 Resistance: KI 20 Resistance: TH 5 Resistance: EX 5 Utility Shielding 33 Weapon Cycling 25 Evasion (%) 79 Targeting Accuracy 8 Target Analysis 6 Offensive Hacking 56 Defensive Hacking 39 Relay Coupler Types 2 Relay Coupler Value 132 Authchip Count 1 Item Schematics ----------------- Adv. Beam Cannon | -9/Materials | Scanalyzed Cld. Particle Cannon | -7/Factory | Hacked Hvy. Plasma Cannon | -7/Factory | Hacked Combat Drone Bay | -7/Data Miner | Free Lgt. Regenerative Plating | -7/Data Miner | Free Cld. Aerolev Unit | -7/Data Miner | Free Exp. Targeting Computer | -7/Data Miner | Free Imp. Heavy Laser | -7/Data Miner | Free Thunder Leg | -7/Data Miner | Free Lrn. Tractor Beam | -7/Data Miner | Free Lance | -7/Data Miner | Free Imp. Force Booster | -7/Data Miner | Free Adv. Cryofiber Web | -7/Data Miner | Free Lrn. Sensor Array | -6/Factory | Hacked Impulse Thruster Array | -5/Factory | Hacked Imp. Weapon Cycler | -5/Hub_04(d) | Hacked Adv. Datajack | -5/Hub_04(d) | Hacked Exp. Field Recycling Unit | -3/Testing | Scanalyzed Exp. Heat Sink | -3/Testing | Archive Imp. Matter Neutralizer | -3/Testing | Archive Coolant Network | -3/Testing | Archive Enh. Armored Leg | -3/Testing | Archive Hvy. Tesla Rifle | -3/Testing | Archive Robot Schematics ------------------ Y-54 Guardian | -7/Factory | Hacked S-27 Virus | -7/Data Miner | Free M-14 Sweeper | -7/Data Miner | Free G-50 Soldier | -7/Data Miner | Free R-10 Processor | -7/Data Miner | Free H-66 Slayer | -5/Factory | Hacked P-70 Sage | -5/Factory | Hacked B-60 Warrior | -5/Factory | Hacked A-15 Conveyor | -5/Hub_04(d) | Hacked A-02 Transporter | -5/Hub_04(d) | Hacked A-27 Freighter | -3/Testing | Archive Fabricated ------------ P-60 Hacker | x2 | -5/Factory | Preloaded P-70 Sage | x2 | -5/Factory P-70 Sage | x2 | -4/Factory | Authchip Repaired ---------- Com. Wheel | 63% | -10/Materials Lgt. Nuclear Core | 36% | -9/Materials Imp. Light Cannon | 74% | -9/Materials Tractor Beam | 28% | -9/Materials Lgt. Armor Plating | 60% | -9/Storage Flight Unit | 20% | -9/Storage Hrd. Light Armor Plating | 51% | -9/Storage Hvy. EM Pulse Gun | 50% | -9/Storage Imp. Light Cannon | 73% | -9/Storage Lgt. Armor Plating | 64% | -8/Materials Hrd. Light Armor Plating | 33% | -8/Materials Lgt. Nuclear Core | 52% | -8/Materials Hvy. EM Pulse Gun | 68% | -7/Factory Lgt. Nuclear Core | 68% | -7/Factory Reactive Plating | 52% | -7/Factory Reactive Plating | 47% | -7/Factory Imp. Flight Unit | 70% | -7/Factory Shock Rifle | 61% | -7/Factory Lightning Gun | 41% | -7/Factory Imp. Light Armor Plating | 61% | -7/Factory Hpw. Shock Rifle | 15% | -5/Factory Lightning Gun | 23% | -5/Factory Lgt. Fission Core | 21% | -5/Factory | Broken Lgt. Fission Core | 28% | -5/Factory Hpw. Shock Rifle | 38% | -5/Factory Imp. Medium Armor Plating | 37% | -5/Factory Cld. Nuclear Pulse Thruster | 99% | -5/Extension | Broken Tesla Rifle | 12% | -5/Extension Tesla Rifle | 57% | -5/Extension Gamma Rifle | 41% | -3/Testing Gamma Rifle | 51% | -3/Testing Adv. Reaction Control System | 26% | -2/Research Studied --------- Imp. Light Cannon | -9/Materials | Hacked Com. Wheel | -9/Materials | Hacked Flight Unit | -9/Materials | Hacked Hvy. EM Pulse Gun | -8/Materials | Hacked Lgt. Nuclear Core | -8/Materials | Hacked Xenon Bombardment Thruster | -5/Factory | Hacked Nuclear Pulse Thruster | -5/Factory | Hacked Lgt. Fission Core | -5/Factory | Hacked Lightning Gun | -5/Factory | Hacked Hpw. Shock Rifle | -5/Factory | Hacked Q-thruster | -4/Factory | Hacked Gamma Rifle | -4/Factory | Hacked VTOL Module | -4/Factory | Hacked Hyp. Railgun | -4/Factory | Hacked Mic. Antimatter Reactor | -3/Testing | Hacked Imp. Fusion Compressor | -3/Testing | Hacked Lgt. Particle Reactor | -3/Testing | Hacked Alien Tech Used ----------------- Transdimensional Reconstructor Dimensional Node Initializer High-powered Transdimensional Reconstructor Matter Drive Achievements -------------- None Challenges ------------ None RPGLIKE | -11 -10 -9 -9 -8 -7 -7 -7 -7 -6 -6 -6 -6 -6 -5 -5 -5 -5 -5 -5 -5 -5 -4 -4 -4 -4 -3 -3 -3 -2 -2 --------- Run | Yrd Mat Mat Sto Mat Fac Low Low Dat Pro Fac Gar Fac DSF Fac Gar Fac Ext Cet Arc Hub Gar Fac Gar Fac DSF Res Tes Gar Res Qua Levels Raised 31 | . 1 3 3 4 3 . 1 . 1 1 1 . 1 1 1 1 1 . . 1 . 1 . . 1 1 1 . 2 1 XP Earned 49541 | 3000 1595 5354 4168 5784 4247 960 559 220 1150 2541 1309 . 697 2788 1562 662 1051 321 175 1007 362 1303 736 52 425 2526 801 850 2193 1143 XP Spent 49260 | 2960 1540 4460 4475 4515 4460 1200 1775 . . 3000 800 . 2300 1420 800 2215 1555 . . . 1100 1700 . . 1720 1475 1390 . 2965 1435 Upgrades 113 | 13 6 13 13 9 5 2 9 . . 2 1 . 1 3 1 5 2 . . . 1 1 . . 6 3 3 . 7 7 Power Slot 2 | . . . . . . 1 . . . . . . . . . . . . . . . . . . . 1 . . . . Propulsion Slot 5 | 1 . 1 1 . 1 . . . . . . . . . . . . . . . . 1 . . . . . . . . Utility Slot 7 | 1 1 1 . 1 1 . . . . 1 . . 1 . . . . . . . . . . . . . . . . . Weapon Slot 2 | 1 . . . . . . . . . . 1 . . . . . . . . . . . . . . . . . . . Core Integrity 22 | 4 1 4 1 . 2 . . . . . . . . 1 . . 1 . . . . . . . . . 1 . . 7 Heat Dissipation 18 | . 1 . 2 . . . 5 . . . . . . . . 2 . . . . . . . . 4 . . . 4 . Energy Generation 1 | . . . . . . . 1 . . . . . . . . . . . . . . . . . . . . . . . Energy Storage 6 | . . . 1 . . . 2 . . . . . . 1 . . . . . . . . . . 1 . 1 . . . Matter Storage 1 | . . . 1 . . . . . . . . . . . . . . . . . . . . . . . . . . . Mass Support 3 | 1 . . . 1 . . . . . . . . . . . . . . . . 1 . . . . . . . . . Inventory Capacity 4 | 2 . . . 1 . . . . . . . . . 1 . . . . . . . . . . . . . . . . Sight Range 2 | . . . 1 . . . . . . . . . . . . . . . . . . . . . 1 . . . . . Sensor Range 14 | 1 1 1 3 2 . . 1 . . . . . . . . 2 . . . . . . . . . 2 . . 1 . Terrain Scan Density 2 | . . 1 . 1 . . . . . . . . . . . . . . . . . . . . . . . . . . Ranged Accuracy 7 | . . 1 . 2 . 1 . . . . . . . . 1 . . . . . . . . . . . 1 . 1 . Hack Attack % 6 | 1 1 1 1 . . . . . . 1 . . . . . 1 . . . . . . . . . . . . . . Hack Defense % 5 | 1 . 1 1 . 1 . . . . . . . . . . . 1 . . . . . . . . . . . . . KI Resistance % 3 | . 1 1 1 . . . . . . . . . . . . . . . . . . . . . . . . . . . TH Resistance % 1 | . . . . . . . . . . . . . . . . . . . . . . . . . . . . . 1 . EX Resistance % 1 | . . . . 1 . . . . . . . . . . . . . . . . . . . . . . . . . . KI Damage % 1 | . . 1 . . . . . . . . . . . . . . . . . . . . . . . . . . . . Protomatter Created 7392 | . 47 204 283 462 316 152 15 . . 255 318 . 78 374 887 324 527 125 150 232 449 184 328 . 184 471 98 254 352 323 Integrity Restored 12471 | . 117 384 837 741 688 471 45 . . 765 815 . 117 452 944 499 831 48 93 489 942 282 550 . 304 439 178 276 912 252 Core 12200 | . 117 384 837 741 646 471 45 . . 765 699 . 117 452 944 499 831 48 93 489 942 282 437 . 304 439 178 276 912 252 Parts 271 | . . . . . 42 . . . . . 116 . . . . . . . . . . . 113 . . . . . . . Protomatter Decayed 5248 | . 8 43 . 373 61 . . . . . 42 . 29 140 364 298 553 89 119 587 151 29 118 . 39 1991 38 118 . 58 Game ------ Seed ActiveLightpackHammer Manual? 0 Play Time 06:24:55 Cumulative 38.9 hours Start 2025.11.08 @ 18:17:22 End 2025.11.09 @ 01:23:12 Sessions 1 Manual Loads 0 Difficulty Rogue Special Mode Winter2019/RPGLIKE Game No. 67 Rogue 67 Adventurer 0 Explorer 0 Win Type - Total 0 Types 0/0/0/0/0/0/0/0/0/0 Lore% 22 Gallery% 31 Achievement% 24 Wizard Run 0 Options --------- Layout 0 ASCII 1 Keyboard 1 Movement Numpad Keybinds 0 Fullscreen 1 Font 18/VGA_Max Map View 76x50 Zoom Use 0% Tactical HUD 1 Map Filters NONE Filters NONE Steam 1 RUN: fb22a286-fc91-4e51-a854-f81a5784038b